Workbook

Sheet Calculator (hidden)
A1: PCC CALCULATOR and SCENARIO SIMULATOR | H1: Move Population and levels to top
H2: Minumum Population to start
H3: ADD Semi fixed costs thresholds
H4: Add Admin; Direct Equipment and supply; indirect; misc.
H5: New section for variable labor
H6: Launch Expenses:
H7: Payback period calculation
J12: Select Years of Op
H13: Launch Cost | I13: 1 | J13: 2 | K13: 3 | L13: 4 | M13: 5
H14: -100000
H24: ADD Increased utilization of services on PMPM or step function
O25: FALSE | P25: =IF(O25,1,0) -> 0
O26: FALSE | P26: =IF(O26,1,0) -> 0
O27: FALSE | P27: 0
O28: FALSE | P28: 0
O29: FALSE | P29: 0
O30: FALSE | P30: 0
A38: Monthly Program Costs | C38: ='3.Population Data'!B5 -> Level 1 | D38: ='3.Population Data'!B6 &" Incremental" -> Level 2 Incremental | E38: All Groups | G38: Level one only
A39: Eligible members | G39: add total offerd to number
C40: 100
A41: Total cost with no CPO's | C41: ='4.Costs'!E44+'3.Population Data'!E5*'4.Costs'!D61 -> 20168.38542 | D41: =E41-C41 -> 20020 | E41: ='4.Costs'!E44+('3.Population Data'!E5+'3.Population Data'!E6)*'4.Costs'!D61 -> 40188.38542
A42: PMPM Costs with No CPO's | C42: =C41/'3.Population Data'!E5 -> 100.8419271 | D42: =D41/'3.Population Data'!E6 -> 100.1 | E42: =E41/'3.Population Data'!#REF! -> 
A43: Total cost with all selected CPO's | C43: =C41+'3.Population Data'!E5*SUMPRODUCT('7.Revenue Enhancements'!C4:C9,P25:P30) -> 20168.38542 | D43: =E43-C43 -> 20020 | E43: =E41+('3.Population Data'!E5+'3.Population Data'!E6)*SUMPRODUCT('7.Revenue Enhancements'!C4:C9,P25:P30) -> 40188.38542
A44: PMPM Costs with all selected CPO's | C44: =C43/'3.Population Data'!E5 -> 100.8419271 | D44: =D43/'3.Population Data'!E6 -> 100.1 | E44: =E43/'3.Population Data'!#REF! -> 
A46: Events and Costs
B47: Baseline Events PMPM
A48: Events | B48: Total Population | C48: =+'3.Population Data'!B5 -> Level 1 | D48: ='3.Population Data'!B6 -> Level 2 | H48: Need increased existing utilization areas
A49: Emergency Room Visits | B49: 0.1666666667 | C49: 0.5 | D49: 0.5 | H49: New services by level
A50: Admittance | B50: 0.3333333333 | C50: 0.3 | D50: 0.3
A51: Re-Admittance | B51: 0.08333333333 | C51: 0.4 | D51: 0.4
A52: Specialist Encounters | B52: 0.08333333333 | C52: 0.2 | D52: 0.2 | H52: Payment types radio buttons turn of irrelevant sections
A53: Other | B53: 0.08333333333 | C53: 0.25 | D53: 0.25 | H53: Full Risk
H54: Shared savings
B55: Cost Per Event | C55: Average Cost per Event | H55: FFS
A56: Cost Per Event | B56: =B48 -> Total Population | C56: =C48 -> Level 1 | D56: Level 2
A57: =A49 -> Emergency Room Visits | B57: 500 | C57: 500 | D57: 500 | H57: Risk exposure:
A58: =A50 -> Admittance | B58: 10000 | C58: 10000 | D58: 10000 | H58: Health plan
A59: Re-admittance | B59: 8000 | C59: 8000 | D59: 8000 | H59: Hospital
A60: Specialist Encounters | B60: 200 | C60: 200 | D60: 200
A61: =A53 -> Other | B61: 250 | C61: 250 | D61: 250 | H61: NEW REVENUE
H62: PMPM Stipend:
A63: Total Costs PMPM | H63: Medicare new codes for PCC services
A64: =A49 -> Emergency Room Visits | B64: =B57*B49 -> 83.33333333 | C64: 250 | D64: 250 | I64: Nurses, social work for patient transitions
A65: =A50 -> Admittance | B65: 3333.333333 | C65: 3000 | D65: 3000
A66: =A59 -> Re-admittance | B66: =B59*B51 -> 666.6666667 | C66: 3200 | D66: 3200
A67: =A60 -> Specialist Encounters | B67: =B60*B52 -> 16.66666667 | C67: 40 | D67: 40
A68: =A53 -> Other | B68: =B61*B53 -> 20.83333333 | C68: 62.5 | D68: 62.5
A69: Total PMPM Costs | B69: =SUM(B64:B68) -> 4120.833333 | C69: =SUM(C64:C68) -> 6552.5 | D69: =SUM(D64:D68) -> 6552.5
A72: Utilization Cost Avoidance per Month | C72: Depth of Program
C73: Level 1 | D73: Level 1 and 2
A75: Events | C75: Reduction Slider (0-40%) | E75: Percent Reduction | F75: Events Reduced | G75: Cost Avoided PMPM | W75: 2
C76: 0……………………………….…………..40%
A77: =A64 -> Emergency Room Visits | B77: Level 1 | G77: =+'6.Medical Utilization'!P4*C64 -> 50 | W77: 20
B78: Level 2 | G78: =IF(W75=2,'6.Medical Utilization'!W4*D64,0) -> 0 | W78: 8
A79: =A65 -> Admittance | B79: Level 1 | E79: =W79/100 -> 0.15 | F79: =E79*C50 -> 0.045 | G79: =+E79*C65 -> 450 | W79: 15
B80: Level 2 | E80: 0.09 | F80: =IF(W75=2,E80*D50,0) -> 0.027 | G80: =IF(W75=2,E80*D65,0) -> 270 | W80: 9
A81: =A59 -> Re-admittance | B81: Level 1 | E81: 0.14 | F81: =+C51*E81 -> 0.056 | G81: =E81*C66 -> 448 | I81: 30 day Readmittance penalty | W81: 14
B82: Level 2 | E82: 0.09 | F82: =IF(W75=2,D51*E82,0) -> 0.036 | G82: =IF(W75=2,E82*D66,0) -> 288 | I82: 30-90 day bundle | W82: 9
A83: =A67 -> Specialist Encounters | B83: Level 1 | E83: 0.18 | F83: =+E83*C52 -> 0.036 | G83: =E83*C67 -> 7.2 | I83: medicare shared savings | W83: 18
B84: Level 2 | E84: 0.11 | F84: =IF(W75=2,E84*D52,0) -> 0.022 | G84: =IF(W75=2,E84*D67,0) -> 4.4 | W84: 11
A85: =A68 -> Other | B85: Level 1 | E85: 0.12 | F85: =E85*C53 -> 0.03 | G85: =E85*C68 -> 7.5 | W85: 12
B86: Level 2 | E86: 0.06 | F86: =IF(W75=2,E86*D53,0) -> 0.015 | G86: =IF(W75=2,E86*D68,0) -> 3.75 | W86: 6
F87: Total Utilization Cost Avoidance PMPM | G87: =IF(Level=1,SUM(G77:G86),SUM(G77,G79,G81,G83,G85)*'3.Population Data'!E5/'3.Population Data'!#REF!+SUM(G78,G80,G82,G84,G86)*'3.Population Data'!E6/'3.Population Data'!#REF!) -> 
A89: Economic Benefits
B90: Revenue Increase | C90: 100 | D90: PMPM
B92: Utilization Cost Increase
C93: Category | D93: Incremental Encounters PMPM | E93: Cost per Encounter | F93: Total Incremental Cost per Category
C94: Mental Health | D94: 1 | E94: 100 | F94: =E94*D94 -> 100
C95: Rehabilitation and Occupational Therapy | D95: 2 | E95: 200 | F95: =+E95*D95 -> 400
E96: Total Utilization Cost Increase PMPM | F96: =SUM(F94:F95) -> 500
A98: Gross Benefit PMPM | B98: =G87-F96+C90 ->  | D98: Admission Only Test
A99: GRACE Costs PMPM | B99: =IF(W75=1,C44,E44) ->  | C99: =IF(W75=1,"Level 1 Only", "Level 1 and 2") -> Level 1 and 2 | E99: Required ROI | F99: 1.56
A100: Net Benefit PMPM | B100: =B98-B99 ->  | E100: Admission Reduction Required | F100: 0.5479856085
A101: Return on Investment | B101: =B100/B99 -> 

Sheet Control (hidden)
I1: Costs | K1: ED Benefits | O1: Admin benefits | S1: Readmit Benefits | X1: month | Z1: =TEXT(RETURNONINV,"#%") -> 206%
B2: Services | C2: Costs | E2: =#REF! ->  | F2: =#REF! ->  | G2: =#REF! ->  | K2: 0.5 | L2: 0.2 | M2: 0.05 | O2: 0.5 | P2: 0.2 | Q2: 0.05 | S2: 0.5 | T2: 0.2 | U2: 0.05 | X2: year | Z2: =TEXT(PBMONTH,"#.##") -> .57
A3: =#REF! ->  | B3: =#REF! ->  | C3: =#REF! ->  | E3: =IF($B3=2,1,0) ->  | F3: =IF($B3=3,1,0) ->  | G3: =IF($B3=4,1,0) ->  | H3: =SUMPRODUCT(E3:G3,#REF!)*#REF! ->  | I3: =IF(C3=1,1,0) ->  | K3: =E3*#REF! ->  | L3: =IF(OR(E3,F3),#REF!,0) ->  | M3: =IF(OR(G3,F3,E3),#REF!,0) ->  | O3: =E3*#REF! ->  | P3: =IF(OR(F3,E3),#REF!,0) ->  | Q3: =IF(OR(G3,F3,E3),#REF!,0) ->  | S3: =E3*#REF! ->  | T3: =IF(OR(F3,E3),#REF!,0) ->  | U3: =IF(OR(G3,E3:F3),#REF!,0) -> 
A4: =#REF! ->  | B4: =#REF! ->  | C4: =#REF! ->  | E4: =IF($B4=2,1,0) ->  | F4: =IF($B4=3,1,0) ->  | G4: =IF($B4=4,1,0) ->  | H4: =SUMPRODUCT(E4:G4,#REF!)*#REF! ->  | I4: =IF(C4=1,1,0) ->  | K4: =E4*#REF! ->  | L4: =IF(OR(E4,F4),#REF!,0) ->  | M4: =IF(OR(G4,F4,E4),#REF!,0) ->  | O4: =E4*#REF! ->  | P4: =IF(OR(F4,E4),#REF!,0) ->  | Q4: =IF(OR(G4,F4,E4),#REF!,0) ->  | S4: =E4*#REF! ->  | T4: =IF(OR(F4,E4),#REF!,0) ->  | U4: =IF(OR(G4,E4:F4),#REF!,0) -> 
A5: =#REF! ->  | B5: =#REF! ->  | C5: =#REF! ->  | H5: =SUMPRODUCT(E5:G5,#REF!)*#REF! ->  | K5: =E5*#REF! ->  | L5: =IF(OR(E5,F5),#REF!,0) ->  | M5: =IF(OR(G5,F5,E5),#REF!,0) ->  | O5: =E5*#REF! ->  | P5: =IF(OR(F5,E5),#REF!,0) ->  | Q5: =IF(OR(G5,F5,E5),#REF!,0) ->  | S5: =E5*#REF! ->  | T5: =IF(OR(F5,E5),#REF!,0) ->  | U5: =IF(OR(G5,E5:F5),#REF!,0) -> 
A6: =#REF! ->  | B6: =#REF! ->  | C6: =#REF! ->  | H6: =SUMPRODUCT(E6:G6,#REF!)*#REF! ->  | K6: =E6*#REF! ->  | L6: =IF(OR(E6,F6),#REF!,0) ->  | M6: =IF(OR(G6,F6,E6),#REF!,0) ->  | O6: =E6*#REF! ->  | P6: =IF(OR(F6,E6),#REF!,0) ->  | Q6: =IF(OR(G6,F6,E6),#REF!,0) ->  | S6: =E6*#REF! ->  | T6: =IF(OR(F6,E6),#REF!,0) ->  | U6: =IF(OR(G6,E6:F6),#REF!,0) -> 
A7: =#REF! ->  | B7: =#REF! ->  | C7: =#REF! ->  | H7: =SUMPRODUCT(E7:G7,#REF!)*#REF! ->  | K7: =E7*#REF! ->  | L7: =IF(OR(E7,F7),#REF!,0) ->  | M7: =IF(OR(G7,F7,E7),#REF!,0) ->  | O7: =E7*#REF! ->  | P7: =IF(OR(F7,E7),#REF!,0) ->  | Q7: =IF(OR(G7,F7,E7),#REF!,0) ->  | S7: =E7*#REF! ->  | T7: =IF(OR(F7,E7),#REF!,0) ->  | U7: =IF(OR(G7,E7:F7),#REF!,0) -> 
A8: =#REF! ->  | B8: =#REF! ->  | C8: =#REF! ->  | H8: =SUMPRODUCT(E8:G8,#REF!)*#REF! ->  | K8: =E8*#REF! ->  | L8: =IF(OR(E8,F8),#REF!,0) ->  | M8: =IF(OR(G8,F8,E8),#REF!,0) ->  | O8: =E8*#REF! ->  | P8: =IF(OR(F8,E8),#REF!,0) ->  | Q8: =IF(OR(G8,F8,E8),#REF!,0) ->  | S8: =E8*#REF! ->  | T8: =IF(OR(F8,E8),#REF!,0) ->  | U8: =IF(OR(G8,E8:F8),#REF!,0) -> 
A9: =#REF! ->  | B9: =#REF! ->  | C9: =#REF! ->  | H9: =SUMPRODUCT(E9:G9,#REF!)*#REF! ->  | K9: =E9*#REF! ->  | L9: =IF(OR(E9,F9),#REF!,0) ->  | M9: =IF(OR(G9,F9,E9),#REF!,0) ->  | O9: =E9*#REF! ->  | P9: =IF(OR(F9,E9),#REF!,0) ->  | Q9: =IF(OR(G9,F9,E9),#REF!,0) ->  | S9: =E9*#REF! ->  | T9: =IF(OR(F9,E9),#REF!,0) ->  | U9: =IF(OR(G9,E9:F9),#REF!,0) -> 
A10: =#REF! ->  | B10: =#REF! ->  | C10: =#REF! ->  | H10: =SUMPRODUCT(E10:G10,#REF!)*#REF! ->  | K10: =E10*#REF! ->  | L10: =IF(OR(E10,F10),#REF!,0) ->  | M10: =IF(OR(G10,F10,E10),#REF!,0) ->  | O10: =E10*#REF! ->  | P10: =IF(OR(F10,E10),#REF!,0) ->  | Q10: =IF(OR(G10,F10,E10),#REF!,0) ->  | S10: =E10*#REF! ->  | T10: =IF(OR(F10,E10),#REF!,0) ->  | U10: =IF(OR(G10,E10:F10),#REF!,0) -> 
A11: =#REF! ->  | B11: =#REF! ->  | C11: =#REF! ->  | H11: =SUMPRODUCT(E11:G11,#REF!)*#REF! ->  | K11: =E11*#REF! ->  | L11: =IF(OR(E11,F11),#REF!,0) ->  | M11: =IF(OR(G11,F11,E11),#REF!,0) ->  | O11: =E11*#REF! ->  | P11: =IF(OR(F11,E11),#REF!,0) ->  | Q11: =IF(OR(G11,F11,E11),#REF!,0) ->  | S11: =E11*#REF! ->  | T11: =IF(OR(F11,E11),#REF!,0) ->  | U11: =IF(OR(G11,E11:F11),#REF!,0) -> 
A12: =#REF! ->  | B12: =#REF! ->  | C12: =#REF! ->  | H12: =SUMPRODUCT(E12:G12,#REF!)*#REF! ->  | K12: =E12*#REF! ->  | L12: =IF(OR(E12,F12),#REF!,0) ->  | M12: =IF(OR(G12,F12,E12),#REF!,0) ->  | O12: =E12*#REF! ->  | P12: =IF(OR(F12,E12),#REF!,0) ->  | Q12: =IF(OR(G12,F12,E12),#REF!,0) ->  | S12: =E12*#REF! ->  | T12: =IF(OR(F12,E12),#REF!,0) ->  | U12: =IF(OR(G12,E12:F12),#REF!,0) -> 
H13: =SUM(H3:H12) ->  | K13: =1-SUM(K3:K12) ->  | L13: =1-SUM(L3:L12) ->  | O13: =1-SUM(O3:O12) ->  | P13: =1-SUM(P3:P12) ->  | Q13: =1-SUM(Q3:Q12) ->  | S13: =1-SUM(S3:S12) ->  | T13: =1-SUM(T3:T12) ->  | U13: =1-SUM(U3:U12) -> 
C15: =+#REF!-D15-E15 ->  | D15: =+#REF!-#REF! ->  | E15: =+#REF! -> 
B16: Visit Count per 1000 | H16: Total Scenario Costs Costs | L16: Cost Savings | N16: ROI
C17: 21-50% | D17: 6-20% | E17: 0-5% | G17: Cost per Visit | H17: 21-50% | I17: 6-20% | J17: 0-5% | K17: Total Costs
B18: ER | C18: =#REF!*Control!K13 ->  | D18: =#REF!*Control!L13 ->  | E18: =#REF!*Control!M13 ->  | G18: 25000 | H18: =$G18*C18*Control!C$15/1000 ->  | I18: =$G18*D18*Control!D$15/1000 ->  | J18: =$G18*E18*Control!E$15/1000 ->  | K18: =SUM(H18:J18) ->  | L18: =#REF!-Control!K18 ->  | M18: =L18/#REF! -> 
B19: Admittance | C19: =#REF!*Control!O13 ->  | D19: =#REF!*Control!P13 ->  | E19: =#REF!*Control!Q13 ->  | G19: 50000 | H19: =$G19*C19*Control!C$15/1000 ->  | I19: =$G19*D19*Control!D$15/1000 ->  | J19: =$G19*E19*Control!E$15/1000 ->  | K19: =SUM(H19:J19) ->  | L19: =#REF!-Control!K19 ->  | M19: =L19/#REF! -> 
B20: Readmit | C20: =#REF!*Control!S13 ->  | D20: =#REF!*Control!T13 ->  | E20: =#REF!*Control!U13 ->  | G20: 35000 | H20: =$G20*C20*Control!C$15/1000 ->  | I20: =$G20*D20*Control!D$15/1000 ->  | J20: =$G20*E20*Control!E$15/1000 ->  | L20: =#REF!-Control!K20 ->  | M20: =L20/#REF! -> 
K21: =SUM(K18:K20) ->  | L21: =SUM(L18:L20) ->  | M21: =L21/#REF! ->  | N21: =(L21-H13)/H13 -> 

Sheet MCCALCS (hidden)
C1: Current | D1: Low | E1: Mostlikely | F1: High | H1: Rand | I1: Standard | J1: TRI | N1: NET Ben | O1: ROI
B2: ='9a.Monte Carlo Analysis'!B3 -> Launch Costs | C2: ='9a.Monte Carlo Analysis'!D3 -> 140000 | D2: ='9a.Monte Carlo Analysis'!E3 -> 0 | E2: ='9a.Monte Carlo Analysis'!F3 -> 0 | F2: ='9a.Monte Carlo Analysis'!G3 -> 0 | H2: =RAND() -> 0.1116469229 | I2: =(E2-D2)/(F2-D2) ->  | J2: =(D2+(F2-D2)*IF(H2<=I2,SQRT(H2*I2),1-SQRT((1-I2)*(1-H2)))) ->  | M2: MIN | N2: =MIN(T27:T10027) -> 459.8012 | O2: =MIN(U27:U10027) -> 1.537229088 | U2: ROI | V2: ='9a.Monte Carlo Analysis'!G44 -> 2.431556288 | W2: =COUNTIF(U$27:U$10026,"<"&V2)/COUNT($U27:U$10026) -> 0.93
A3: 1 | B3: ='9a.Monte Carlo Analysis'!B5 -> Hospital Admissions | C3: ='9a.Monte Carlo Analysis'!D5 -> 1.33 | D3: ='9a.Monte Carlo Analysis'!E5 -> 1.064 | E3: ='9a.Monte Carlo Analysis'!F5 -> 1.33 | F3: ='9a.Monte Carlo Analysis'!G5 -> 1.596000063 | H3: =RAND() -> 0.4857649734 | I3: =(E3-D3)/(F3-D3) -> 0.4999999404 | J3: =(D3+(F3-D3)*IF(H3<=I3,SQRT(H3*I3),1-SQRT((1-I3)*(1-H3)))) -> 1.326186157 | M3: MAX | N3: =MAX(T27:T10027) -> 773.7491 | O3: =MAX(U27:U10027) -> 2.586834291 | V3: ='9a.Monte Carlo Analysis'!G45 -> 2.97190213 | W3: =COUNTIF(U$27:U$10026,">"&V3)/COUNT($U28:U$10026) -> 0
A4: 2 | B4: =B3 -> Hospital Admissions | C4: ='9a.Monte Carlo Analysis'!D6 -> 0.665 | D4: ='9a.Monte Carlo Analysis'!E6 -> 0.532 | E4: ='9a.Monte Carlo Analysis'!F6 -> 0.665 | F4: ='9a.Monte Carlo Analysis'!G6 -> 0.7980000317 | H4: 0.9220936034 | I4: =(E4-D4)/(F4-D4) -> 0.4999999404 | J4: =(D4+(F4-D4)*IF(H4<=I4,SQRT(H4*I4),1-SQRT((1-I4)*(1-H4)))) -> 0.7455007604 | N4: =ROUNDDOWN(N2,0) -> 459 | O4: =ROUNDDOWN(O2,1) -> 1.5 | W4: =(1-W2)-(W3) -> 0.07
A5: 1 | B5: ='9a.Monte Carlo Analysis'!B8 -> Hospital Readmissions | C5: ='9a.Monte Carlo Analysis'!D8 -> 0.17 | D5: ='9a.Monte Carlo Analysis'!E8 -> 0.136 | E5: ='9a.Monte Carlo Analysis'!F8 -> 0.17 | F5: ='9a.Monte Carlo Analysis'!G8 -> 0.2040000081 | H5: 0.9469859914 | I5: 0.4999999404 | J5: 0.1929289453 | N5: =ROUNDUP(N3,0) -> 774 | O5: =ROUNDUP(O3,1) -> 2.6 | U5: NET Bene | V5: ='9a.Monte Carlo Analysis'!G40 -> 2715.2379 | W5: =COUNTIF(T$27:T$10026,"<"&V5)/COUNT($T30:T$10026) -> 1.030927835
A6: 2 | B6: =B5 -> Hospital Readmissions | C6: ='9a.Monte Carlo Analysis'!D9 -> 0.085 | D6: ='9a.Monte Carlo Analysis'!E9 -> 0.068 | E6: ='9a.Monte Carlo Analysis'!F9 -> 0.085 | F6: ='9a.Monte Carlo Analysis'!G9 -> 0.1020000041 | H6: 0.8168899813 | I6: 0.4999999404 | J6: 0.09171226238 | N6: =(N5-N4)/30 -> 10.5 | O6: =(O5-O4)/30 -> 0.03666666667 | V6: ='9a.Monte Carlo Analysis'!G41 -> 3318.6241 | W6: =COUNTIF(T$27:T$10026,">"&V6)/COUNT($T31:T$10026) -> 0
A7: 1 | B7: ='9a.Monte Carlo Analysis'!B11 -> Emergency Dept. | C7: ='9a.Monte Carlo Analysis'!D11 -> 1890 | D7: ='9a.Monte Carlo Analysis'!E11 -> 1512 | E7: ='9a.Monte Carlo Analysis'!F11 -> 1890 | F7: ='9a.Monte Carlo Analysis'!G11 -> 2268.00009 | H7: 0.8780499729 | I7: =(E7-D7)/(F7-D7) -> 0.4999999404 | J7: =(D7+(F7-D7)*IF(H7<=I7,SQRT(H7*I7),1-SQRT((1-I7)*(1-H7)))) -> 2081.320076 | N7: =ROUNDUP(N6,1) -> 10.5 | O7: =O6 -> 0.03666666667 | W7: =(1-W5)-(W6) -> -0.03092783505
A8: 2 | B8: =B7 -> Emergency Dept. | C8: ='9a.Monte Carlo Analysis'!D12 -> 945 | D8: ='9a.Monte Carlo Analysis'!E12 -> 756 | E8: ='9a.Monte Carlo Analysis'!F12 -> 945 | F8: ='9a.Monte Carlo Analysis'!G12 -> 1134.000045 | H8: 0.1495746806 | I8: 0.4999999404 | J8: 859.3727024
A9: 1 | B9: ='9a.Monte Carlo Analysis'!B14 -> Baseline Cost of Hospital Admissions | C9: ='9a.Monte Carlo Analysis'!D14 -> 3500 | D9: ='9a.Monte Carlo Analysis'!E14 -> 2800 | E9: ='9a.Monte Carlo Analysis'!F14 -> 3500 | F9: ='9a.Monte Carlo Analysis'!G14 -> 4200.000167 | H9: 0.07805802682 | I9: =(E9-D9)/(F9-D9) -> 0.4999999404 | J9: =(D9+(F9-D9)*IF(H9<=I9,SQRT(H9*I9),1-SQRT((1-I9)*(1-H9)))) -> 3076.580685
A10: 2 | C10: ='9a.Monte Carlo Analysis'!D15 -> 2625 | D10: ='9a.Monte Carlo Analysis'!E15 -> 2100 | E10: ='9a.Monte Carlo Analysis'!F15 -> 2625 | F10: ='9a.Monte Carlo Analysis'!G15 -> 3150.000125 | H10: 0.3608327246 | I10: =(E10-D10)/(F10-D10) -> 0.4999999404 | J10: =(D10+(F10-D10)*IF(H10<=I10,SQRT(H10*I10),1-SQRT((1-I10)*(1-H10)))) -> 2545.992223
A11: 1 | B11: Baseline Cost of Hospital Day-Admission | C11: ='9a.Monte Carlo Analysis'!D17 -> 3500 | D11: ='9a.Monte Carlo Analysis'!E17 -> 2800 | E11: ='9a.Monte Carlo Analysis'!F17 -> 3500 | F11: ='9a.Monte Carlo Analysis'!G17 -> 4200.000167 | H11: 0.8081442906 | I11: 0.4999999404 | J11: 3766.388979
A12: 2 | C12: ='9a.Monte Carlo Analysis'!D18 -> 2625 | D12: ='9a.Monte Carlo Analysis'!E18 -> 2100 | E12: ='9a.Monte Carlo Analysis'!F18 -> 2625 | F12: ='9a.Monte Carlo Analysis'!G18 -> 3150.000125 | H12: 0.6707692141 | I12: 0.4999999404 | J12: 2723.985412
B13: ='9a.Monte Carlo Analysis'!B20 -> Costs per Emergency Dept. | C13: ='9a.Monte Carlo Analysis'!D20 -> 2800 | D13: ='9a.Monte Carlo Analysis'!E20 -> 2240 | E13: ='9a.Monte Carlo Analysis'!F20 -> 2800 | F13: ='9a.Monte Carlo Analysis'!G20 -> 3360.000134 | H13: 0.688916315 | I13: =(E13-D13)/(F13-D13) -> 0.4999999404 | J13: =(D13+(F13-D13)*IF(H13<=I13,SQRT(H13*I13),1-SQRT((1-I13)*(1-H13)))) -> 2918.285568
B14: ='9a.Monte Carlo Analysis'!B22 -> Percentage Change in Specialty Care | C14: ='9a.Monte Carlo Analysis'!D22*100+20 -> 10 | D14: ='9a.Monte Carlo Analysis'!E22*100+20 -> 12 | E14: ='9a.Monte Carlo Analysis'!F22*100+20 -> 10 | F14: ='9a.Monte Carlo Analysis'!G22*100+20 -> 7.999999523 | H14: 0.2789192182 | I14: =(E14-D14)/(F14-D14) -> 0.4999999404 | J14: =(D14+(F14-D14)*IF(H14<=I14,SQRT(H14*I14),1-SQRT((1-I14)*(1-H14)))) -> 10.50622826 | M14: Point | N14: 0
B15: ='9a.Monte Carlo Analysis'!B24 -> Percentage Change in Emergency Dept. | C15: ='9a.Monte Carlo Analysis'!D24*100+60 -> 25 | D15: ='9a.Monte Carlo Analysis'!E24*100+60 -> 32 | E15: ='9a.Monte Carlo Analysis'!F24*100+60 -> 25 | F15: ='9a.Monte Carlo Analysis'!G24*100+60 -> 17.99999833 | H15: 0.04377072873 | I15: =(E15-D15)/(F15-D15) -> 0.4999999404 | J15: =(D15+(F15-D15)*IF(H15<=I15,SQRT(H15*I15),1-SQRT((1-I15)*(1-H15)))) -> 29.92888148
B16: ='9a.Monte Carlo Analysis'!B26 -> Percentage Change in Hospital Admissions | C16: ='9a.Monte Carlo Analysis'!D26*100+60 -> 35 | D16: ='9a.Monte Carlo Analysis'!E26*100+60 -> 40 | E16: ='9a.Monte Carlo Analysis'!F26*100+60 -> 35 | F16: ='9a.Monte Carlo Analysis'!G26*100+60 -> 29.99999881 | H16: 0.08690467256 | I16: =(E16-D16)/(F16-D16) -> 0.4999999404 | J16: =(D16+(F16-D16)*IF(H16<=I16,SQRT(H16*I16),1-SQRT((1-I16)*(1-H16)))) -> 37.91547748
B17: ='9a.Monte Carlo Analysis'!B28 -> Percentage Change in Hospital Readmissions | C17: ='9a.Monte Carlo Analysis'!D28*100+60 -> 35 | D17: ='9a.Monte Carlo Analysis'!E28*100+60 -> 40 | E17: ='9a.Monte Carlo Analysis'!F28*100+60 -> 35 | F17: ='9a.Monte Carlo Analysis'!G28*100+60 -> 29.99999881 | H17: 0.7766025695 | I17: =(E17-D17)/(F17-D17) -> 0.4999999404 | J17: =(D17+(F17-D17)*IF(H17<=I17,SQRT(H17*I17),1-SQRT((1-I17)*(1-H17)))) -> 33.34213518
D19: D2+(F2-D2)*IF(H2<=i2,SQRT(H2*I2),1-SQRT(1-I2)*(1-H2))
C23: 3 | D23: 4 | E23: 5 | F23: 6 | G23: 7 | H23: 8 | I23: 9 | J23: 10 | K23: 11 | L23: 12 | M23: 13 | N23: 14 | O23: 15 | P23: 16 | Q23: 17 | R23: 18
C24: INPUTS | T24: Outputs | V24: 0 | W24: =+N4 -> 459 | X24: =COUNTIFS(T$27:T$10026,">" &N14,T$27:T$10026, "<=" &W24) -> 0 | Y24: =O$4+O$7*V24 -> 1.5 | Z24: =COUNTIFS(U$27:U$10026,">" &P14,U$27:U$10026, "<=" &Y24) -> 0 | AA24: =X24/X$55 -> 0 | AB24: =Z24/Z$55 -> 0
B25: Iteration | C25: LaunchCosts | D25: BaseAdmin 1 | E25: BaseAdmin 2 | F25: BaseReadmin 1 | G25: BaseReadmin 2 | H25: EDVisit1 | I25: EDVisit2 | J25: Hosp Costs Admin Level1 | K25: Hosp Costs Admin Level2 | L25: Hosp Costs ReAdmin Level1 | M25: Hosp Costs ReAdmin Level2 | N25: EDCost | O25: PCSPecVisit | P25: PCEDVisits | Q25: PCADMIN | R25: PCREADMIN | T25: NETBEN | U25: ROI | V25: 1 | W25: =+W$24+V25*N$7 -> 469.5 | X25: =COUNTIFS(T$27:T$10026,">" &W24,T$27:T$10026, "<=" &W25) -> 1 | Y25: =O$4+O$7*V25 -> 1.536666667 | Z25: =COUNTIFS(U$27:U$10026,">" &Y24,U$27:U$10026, "<=" &Y25) -> 0 | AA25: 0.01 | AB25: 0
C26: 140000 | D26: 1.33 | E26: 0.665 | F26: 0.17 | G26: 0.085 | H26: 1890 | I26: 945 | J26: 3500 | K26: 2625 | L26: 3500 | M26: 2625 | N26: 2800 | O26: 10 | P26: 25 | Q26: 35 | R26: 35 | T26: 615.2123 | U26: 2.056806588 | V26: 2 | W26: 480 | X26: =COUNTIFS(T$27:T$10026,">" &W25,T$27:T$10026, "<=" &W26) -> 1 | Y26: =O$4+O$7*V26 -> 1.573333333 | Z26: =COUNTIFS(U$27:U$10026,">" &Y25,U$27:U$10026, "<=" &Y26) -> 1 | AA26: 0.01 | AB26: 0.01
D27: 1.378817815 | E27: 0.6466774794 | F27: 0.1808382078 | G27: 0.0877029528 | H27: 1993.46539 | I27: 931.9272388 | J27: 3349.3069 | K27: 2793.0567 | L27: 4029.9933 | M27: 2694.3427 | N27: 3034.4044 | O27: 9.49120348 | P27: 23.28554387 | Q27: 32.89034535 | R27: 35.43555078 | T27: 615.2123 | U27: 2.056806588 | V27: 3 | W27: 490.5 | X27: 1 | Y27: 1.61 | Z27: 1 | AA27: 0.01 | AB27: 0.01
D28: 1.341378965 | E28: 0.6425182388 | F28: 0.1700270489 | G28: 0.09295101734 | H28: 1846.787691 | I28: 1079.358868 | J28: 3929.8687 | K28: 2436.777 | L28: 3545.17 | M28: 2329.9135 | N28: 2681.6807 | O28: 10.21881358 | P28: 21.309242 | Q28: 35.1537467 | R28: 35.40991465 | T28: 674.9383 | U28: 2.256485399 | V28: 4 | W28: 501 | X28: 2 | Y28: 1.646666667 | Z28: 1 | AA28: 0.02 | AB28: 0.01
D29: 1.32312144 | E29: 0.7353144146 | F29: 0.1716809167 | G29: 0.08973025174 | H29: 2074.92904 | I29: 1032.559847 | J29: 2995.6522 | K29: 2727.743 | L29: 4134.8926 | M29: 2553.1251 | N29: 3114.5854 | O29: 11.36894706 | P29: 21.46513616 | Q29: 34.97311419 | R29: 34.6009694 | T29: 682.0865 | U29: 2.280383702 | V29: 5 | W29: 511.5 | X29: 1 | Y29: 1.683333333 | Z29: 2 | AA29: 0.01 | AB29: 0.02
D30: 1.104025422 | E30: 0.6734980642 | F30: 0.1629897327 | G30: 0.08264405754 | H30: 2018.295447 | I30: 930.4489176 | J30: 3766.4372 | K30: 2627.1815 | L30: 3296.2046 | M30: 2976.8325 | N30: 2877.1074 | O30: 11.30120607 | P30: 23.27142082 | Q30: 33.66825944 | R30: 34.78581463 | T30: 606.3762 | U30: 2.027265364 | V30: 6 | W30: 522 | X30: 2 | Y30: 1.72 | Z30: 1 | AA30: 0.02 | AB30: 0.01
D31: 1.243484261 | E31: 0.7500297223 | F31: 0.1738440934 | G31: 0.08788524247 | H31: 1576.402168 | I31: 943.3569783 | J31: 3398.1538 | K31: 2408.3435 | L31: 3608.0036 | M31: 2479.7726 | N31: 2547.0445 | O31: 9.557977946 | P31: 29.65967013 | Q31: 36.54724143 | R31: 33.25003981 | T31: 582.9996 | U31: 1.949111558 | V31: 7 | W31: 532.5 | X31: 7 | Y31: 1.756666667 | Z31: 5 | AA31: 0.07 | AB31: 0.05
D32: 1.387965808 | E32: 0.6850401638 | F32: 0.195676329 | G32: 0.0885137253 | H32: 1829.805353 | I32: 1075.565799 | J32: 2921.6136 | K32: 2560.8788 | L32: 4013.8874 | M32: 2515.3231 | N32: 2782.9165 | O32: 8.959837086 | P32: 26.80847822 | Q32: 33.47045831 | R32: 37.92970379 | T32: 524.0687 | U32: 1.752091165 | V32: 8 | W32: 543 | X32: 3 | Y32: 1.793333333 | Z32: 4 | AA32: 0.03 | AB32: 0.04
D33: 1.48855833 | E33: 0.755522487 | F33: 0.1668890879 | G33: 0.09155225607 | H33: 1836.163615 | I33: 1056.305376 | J33: 3377.2186 | K33: 2634.0567 | L33: 3114.8274 | M33: 2476.3057 | N33: 3017.9572 | O33: 9.38927326 | P33: 29.22955448 | Q33: 36.60972083 | R33: 35.65179218 | T33: 574.5567 | U33: 1.920884999 | V33: 9 | W33: 553.5 | X33: 5 | Y33: 1.83 | Z33: 5 | AA33: 0.05 | AB33: 0.05
D34: 1.240398774 | E34: 0.69527661 | F34: 0.1552889553 | G34: 0.09773157515 | H34: 1853.425884 | I34: 854.266919 | J34: 3195.4073 | K34: 2697.544 | L34: 2939.2751 | M34: 2256.4341 | N34: 2855.0353 | O34: 9.701223346 | P34: 28.36375819 | Q34: 34.22251526 | R34: 34.1757856 | T34: 642.557 | U34: 2.14822666 | V34: 10 | W34: 564 | X34: 4 | Y34: 1.866666667 | Z34: 5 | AA34: 0.04 | AB34: 0.05
D35: 1.195965463 | E35: 0.7421222018 | F35: 0.1663350963 | G35: 0.09002305535 | H35: 1655.874832 | I35: 1046.046184 | J35: 3386.8511 | K35: 2510.4148 | L35: 3742.3567 | M35: 2609.0181 | N35: 2944.8693 | O35: 10.48853426 | P35: 29.54863125 | Q35: 37.07266933 | R35: 33.26146776 | T35: 525.1506 | U35: 1.755707999 | V35: 11 | W35: 574.5 | X35: 5 | Y35: 1.903333333 | Z35: 5 | AA35: 0.05 | AB35: 0.05
D36: 1.344488051 | E36: 0.6600788957 | F36: 0.1627837362 | G36: 0.07656952289 | H36: 2112.576275 | I36: 886.6052602 | J36: 3556.5058 | K36: 2667.6917 | L36: 3487.4682 | M36: 2673.5805 | N36: 3232.3504 | O36: 11.13459811 | P36: 26.26889585 | Q36: 34.87975756 | R36: 35.17496028 | T36: 522.5908 | U36: 1.747149972 | V36: 12 | W36: 585 | X36: 9 | Y36: 1.94 | Z36: 6 | AA36: 0.09 | AB36: 0.06
D37: 1.203833064 | E37: 0.6353075885 | F37: 0.1841116446 | G37: 0.07848267617 | H37: 1830.803706 | I37: 933.8313295 | J37: 3961.6342 | K37: 2685.5478 | L37: 4117.7048 | M37: 2788.3334 | N37: 2638.9384 | O37: 10.83198886 | P37: 26.1472917 | Q37: 35.23150418 | R37: 36.36869342 | T37: 648.0197 | U37: 2.166490049 | V37: 13 | W37: 595.5 | X37: 3 | Y37: 1.976666667 | Z37: 5 | AA37: 0.03 | AB37: 0.05
D38: 1.513413943 | E38: 0.6269287091 | F38: 0.1851326334 | G38: 0.07853572257 | H38: 1995.362168 | I38: 986.6243338 | J38: 3197.3002 | K38: 2718.9713 | L38: 3449.8078 | M38: 2475.3417 | N38: 2991.9955 | O38: 11.6320618 | P38: 24.60926141 | Q38: 33.8358059 | R38: 33.9679006 | T38: 624.3206 | U38: 2.087257987 | V38: 14 | W38: 606 | X38: 2 | Y38: 2.013333333 | Z38: 3 | AA38: 0.02 | AB38: 0.03
D39: 1.358140029 | E39: 0.5786092759 | F39: 0.1485404445 | G39: 0.08924393855 | H39: 1949.741181 | I39: 905.8173056 | J39: 3983.0668 | K39: 2467.4168 | L39: 3755.1279 | M39: 2910.121 | N39: 2964.3446 | O39: 10.07685313 | P39: 26.76836484 | Q39: 31.87816387 | R39: 32.57689216 | T39: 667.0634 | U39: 2.23015756 | V39: 15 | W39: 616.5 | X39: 7 | Y39: 2.05 | Z39: 5 | AA39: 0.07 | AB39: 0.05
D40: 1.420852796 | E40: 0.7287521126 | F40: 0.1702866568 | G40: 0.09227929525 | H40: 1803.635303 | I40: 855.9591601 | J40: 3743.6478 | K40: 3020.1375 | L40: 3332.2573 | M40: 2675.6993 | N40: 2507.6406 | O40: 9.868604956 | P40: 20.31663553 | Q40: 33.6855416 | R40: 32.48516288 | T40: 723.4082 | U40: 2.418532145 | V40: 16 | W40: 627 | X40: 6 | Y40: 2.086666667 | Z40: 9 | AA40: 0.06 | AB40: 0.09
D41: 1.302584807 | E41: 0.6506037256 | F41: 0.1905330113 | G41: 0.07734649078 | H41: 1931.247934 | I41: 908.7466031 | J41: 3230.1524 | K41: 3007.1052 | L41: 3227.4199 | M41: 2725.0856 | N41: 2893.4282 | O41: 9.587986956 | P41: 27.81072279 | Q41: 32.37086117 | R41: 34.23170778 | T41: 738.9492 | U41: 2.470489834 | V41: 17 | W41: 637.5 | X41: 3 | Y41: 2.123333333 | Z41: =COUNTIFS(U$27:U$10026,">" &Y40,U$27:U$10026, "<=" &Y41) -> 4 | AA41: 0.03 | AB41: 0.04
D42: 1.377825851 | E42: 0.7098747127 | F42: 0.1806114386 | G42: 0.08164720217 | H42: 1680.67034 | I42: 875.1694895 | J42: 3192.6292 | K42: 2859.8694 | L42: 3408.271 | M42: 2448.0836 | N42: 2953.7307 | O42: 9.259578054 | P42: 23.22573677 | Q42: 36.18846373 | R42: 33.69401201 | T42: 605.1069 | U42: 2.023021934 | V42: 18 | W42: 648 | X42: 5 | Y42: 2.16 | Z42: 4 | AA42: 0.05 | AB42: 0.04
D43: 1.445390525 | E43: 0.6918288637 | F43: 0.1733595477 | G43: 0.08029048323 | H43: 1705.357431 | I43: 1062.558507 | J43: 3570.3831 | K43: 2617.5696 | L43: 3762.1995 | M43: 2324.9137 | N43: 2650.6753 | O43: 10.53272702 | P43: 23.58883234 | Q43: 36.35452246 | R43: 33.50009152 | T43: 594.8088 | U43: 1.988592783 | V43: 19 | W43: 658.5 | X43: 8 | Y43: 2.196666667 | Z43: 8 | AA43: 0.08 | AB43: 0.08
D44: 1.331858485 | E44: 0.6345862672 | F44: 0.1605998102 | G44: 0.07046872674 | H44: 2174.663703 | I44: 933.5640791 | J44: 3986.8056 | K44: 2441.7545 | L44: 3687.7645 | M44: 2577.7662 | N44: 2659.4157 | O44: 9.47683596 | P44: 28.14593717 | Q44: 31.14990724 | R44: 39.76546927 | T44: 661.9026 | U44: 2.212903869 | V44: 20 | W44: 669 | X44: 5 | Y44: 2.233333333 | Z44: 6 | AA44: 0.05 | AB44: 0.06
D45: 1.200042638 | E45: 0.7018021208 | F45: 0.1998314057 | G45: 0.08273983501 | H45: 2091.677217 | I45: 919.5624778 | J45: 3192.4943 | K45: 2447.3625 | L45: 3052.2861 | M45: 2931.7271 | N45: 2479.9452 | O45: 10.43479759 | P45: 25.24779161 | Q45: 34.25081946 | R45: 36.48974054 | T45: 711.8177 | U45: 2.379782276 | V45: 21 | W45: 679.5 | X45: 5 | Y45: 2.27 | Z45: 5 | AA45: 0.05 | AB45: 0.05
D46: 1.206634085 | E46: 0.7420022862 | F46: 0.1666182386 | G46: 0.0818139747 | H46: 1888.312865 | I46: 951.0301822 | J46: 3202.6733 | K46: 2708.6792 | L46: 3630.9707 | M46: 2568.6469 | N46: 2914.6022 | O46: 10.17069901 | P46: 26.03252373 | Q46: 33.34517313 | R46: 32.69462385 | T46: 518.5098 | U46: 1.733506242 | V46: 22 | W46: 690 | X46: 3 | Y46: 2.306666667 | Z46: 3 | AA46: 0.03 | AB46: 0.03
D47: 1.223357703 | E47: 0.6752370236 | F47: 0.194251377 | G47: 0.08726695557 | H47: 2071.094667 | I47: 1090.868937 | J47: 3728.3028 | K47: 2751.0452 | L47: 2883.2958 | M47: 2515.8595 | N47: 2908.7141 | O47: 9.430008034 | P47: 21.02223058 | Q47: 33.87362518 | R47: 38.36635604 | T47: 564.9528 | U47: 1.88877691 | V47: 23 | W47: 700.5 | X47: 1 | Y47: 2.343333333 | Z47: 1 | AA47: 0.01 | AB47: 0.01
D48: 1.392895415 | E48: 0.6736237928 | F48: 0.1588047522 | G48: 0.08626546961 | H48: 1733.133497 | I48: 1074.998969 | J48: 4062.066 | K48: 2647.187 | L48: 4050.3434 | M48: 2619.3694 | N48: 3142.8838 | O48: 10.09682667 | P48: 24.60804773 | Q48: 33.4643271 | R48: 35.87259177 | T48: 651.1531 | U48: 2.17696568 | V48: 24 | W48: 711 | X48: 2 | Y48: 2.38 | Z48: 3 | AA48: 0.02 | AB48: 0.03
D49: 1.325820133 | E49: 0.6796227379 | F49: 0.1886184175 | G49: 0.07721760081 | H49: 1971.166157 | I49: 959.2015022 | J49: 3280.0073 | K49: 2500.4835 | L49: 3579.49 | M49: 2526.9168 | N49: 2731.6999 | O49: 9.705473328 | P49: 22.51220498 | Q49: 36.8538201 | R49: 34.84888176 | T49: 773.5276 | U49: 2.586093663 | V49: 25 | W49: 721.5 | X49: 1 | Y49: 2.416666667 | Z49: 0 | AA49: 0.01 | AB49: 0
D50: 1.433747618 | E50: 0.6164666987 | F50: 0.1839470879 | G50: 0.07930595715 | H50: 1662.785316 | I50: 976.533707 | J50: 3756.8179 | K50: 2404.054 | L50: 3537.1269 | M50: 2467.092 | N50: 2457.6348 | O50: 9.226738504 | P50: 25.25558467 | Q50: 35.48010366 | R50: 34.58298659 | T50: 572.2974 | U50: 1.913331627 | V50: 26 | W50: 732 | X50: 1 | Y50: 2.453333333 | Z50: 1 | AA50: 0.01 | AB50: 0.01
D51: 1.214965414 | E51: 0.6646252983 | F51: 0.1623973268 | G51: 0.1005734563 | H51: 1856.487955 | I51: 938.0959793 | J51: 3014.403 | K51: 2241.0255 | L51: 3054.8863 | M51: 2546.0786 | N51: 2640.6228 | O51: 10.3372077 | P51: 22.24118433 | Q51: 33.62135796 | R51: 36.35216603 | T51: 658.0067 | U51: 2.199878894 | V51: 27 | W51: 742.5 | X51: 1 | Y51: 2.49 | Z51: 1 | AA51: 0.01 | AB51: 0.01
D52: 1.280731447 | E52: 0.6275058494 | F52: 0.1792500138 | G52: 0.07717269489 | H52: 1834.535767 | I52: 964.1470134 | J52: 3147.8353 | K52: 2676.4692 | L52: 4027.4095 | M52: 2871.8067 | N52: 2762.5035 | O52: 9.713135026 | P52: 26.79468029 | Q52: 34.72697801 | R52: 38.31140736 | T52: 485.5111 | U52: 1.623183554 | V52: 28 | W52: 753 | X52: 0 | Y52: 2.526666667 | Z52: 2 | AA52: 0 | AB52: 0.02
D53: 1.386296469 | E53: 0.6698185868 | F53: 0.1891602227 | G53: 0.08566904405 | H53: 1738.942732 | I53: 967.1249332 | J53: 2941.789 | K53: 2249.308 | L53: 3634.468 | M53: 2509.7723 | N53: 2856.4295 | O53: 10.31874811 | P53: 22.68866897 | Q53: 31.50216967 | R53: 37.65611092 | T53: 540.7937 | U53: 1.808006818 | V53: 29 | W53: 763.5 | X53: 3 | Y53: 2.563333333 | Z53: 1 | AA53: 0.03 | AB53: 0.01
D54: 1.487678431 | E54: 0.5711592738 | F54: 0.1504642224 | G54: 0.08755409695 | H54: 2015.313152 | I54: 844.5930395 | J54: 4005.2174 | K54: 2567.7168 | L54: 3715.317 | M54: 3112.3133 | N54: 3145.9577 | O54: 11.32696733 | P54: 26.45628951 | Q54: 34.74860054 | R54: 33.32198151 | T54: 577.3887 | U54: 1.930352965 | V54: 30 | W54: 774 | X54: 3 | Y54: 2.6 | Z54: 3 | AA54: 0.03 | AB54: 0.03
D55: 1.414607027 | E55: 0.6939163845 | F55: 0.1859773991 | G55: 0.07354166536 | H55: 1891.730999 | I55: 846.2098364 | J55: 3573.2076 | K55: 2685.871 | L55: 3276.3656 | M55: 2533.2929 | N55: 2446.8221 | O55: 10.14309817 | P55: 25.22313073 | Q55: 35.97440431 | R55: 37.36858867 | T55: 760.3008 | U55: 2.541873291 | X55: =SUM(X24:X54) -> 100 | Z55: =SUM(Z24:Z54) -> 100
D56: 1.383151207 | E56: 0.7334556301 | F56: 0.1693567865 | G56: 0.07472512398 | H56: 1744.010587 | I56: 1058.823429 | J56: 3176.4337 | K56: 2481.0853 | L56: 3673.9395 | M56: 2854.2363 | N56: 2962.1079 | O56: 9.803309785 | P56: 25.93242816 | Q56: 38.1645373 | R56: 37.85603192 | T56: 634.4523 | U56: 2.121130614
D57: 1.201799789 | E57: 0.6475170821 | F57: 0.1503393988 | G57: 0.09519150517 | H57: 1796.344912 | I57: 836.0211837 | J57: 3534.371 | K57: 2632.0214 | L57: 3537.1316 | M57: 2557.6003 | N57: 2734.8379 | O57: 10.58598811 | P57: 31.56604952 | Q57: 38.39477694 | R57: 33.88777095 | T57: 554.5365 | U57: 1.853952462
D58: 1.566868436 | E58: 0.694580684 | F58: 0.1749758235 | G58: 0.08507317456 | H58: 1781.60248 | I58: 1030.067779 | J58: 3522.0711 | K58: 2910.7841 | L58: 3433.2241 | M58: 2578.9252 | N58: 2980.8453 | O58: 10.03955428 | P58: 24.01397526 | Q58: 34.39980138 | R58: 35.13132493 | T58: 493.1867 | U58: 1.648845099
D59: 1.469654479 | E59: 0.6594277357 | F59: 0.1693115687 | G59: 0.09676781377 | H59: 2176.03349 | I59: 863.0682765 | J59: 3949.5571 | K59: 2390.9072 | L59: 3494.3361 | M59: 2625.1224 | N59: 2736.3471 | O59: 11.77291986 | P59: 26.46743977 | Q59: 38.9843774 | R59: 37.68264882 | T59: 753.0213 | U59: 2.517536125
D60: 1.29147134 | E60: 0.6959937828 | F60: 0.1530870252 | G60: 0.09429430975 | H60: 1770.942297 | I60: 943.3510285 | J60: 3500.4283 | K60: 2333.6121 | L60: 4069.8455 | M60: 2417.1494 | N60: 2706.6491 | O60: 10.12202043 | P60: 29.95061628 | Q60: 34.04164084 | R60: 35.6970165 | T60: 677.2879 | U60: 2.264340713
D61: 1.384090408 | E61: 0.6336484788 | F61: 0.1680248329 | G61: 0.0843164908 | H61: 1912.180533 | I61: 944.7777193 | J61: 3478.8472 | K61: 2965.0011 | L61: 3830.5641 | M61: 2877.9127 | N61: 2903.7558 | O61: 10.71024972 | P61: 27.90263531 | Q61: 35.29136936 | R61: 32.97984826 | T61: 580.4816 | U61: 1.94069321
D62: 1.109796668 | E62: 0.7062360964 | F62: 0.1568187477 | G62: 0.08369980114 | H62: 2027.960425 | I62: 938.382464 | J62: 3539.0455 | K62: 2777.2799 | L62: 3409.3956 | M62: 2592.062 | N62: 2532.3508 | O62: 9.514829019 | P62: 24.76077166 | Q62: 34.51469379 | R62: 35.86494649 | T62: 643.8021 | U62: 2.152389272
D63: 1.265059223 | E63: 0.6842613473 | F63: 0.1828774365 | G63: 0.08107029496 | H63: 1740.348602 | I63: 1037.054707 | J63: 3380.7181 | K63: 2867.6024 | L63: 3813.5899 | M63: 2848.0983 | N63: 2503.698 | O63: 10.73419634 | P63: 24.75222158 | Q63: 32.08599825 | R63: 36.51935781 | T63: 538.6032 | U63: 1.800683493
D64: 1.340553336 | E64: 0.6355675445 | F64: 0.1524469155 | G64: 0.09011543913 | H64: 1728.75311 | I64: 874.7988644 | J64: 3290.215 | K64: 2654.8621 | L64: 3963.9954 | M64: 2401.6798 | N64: 2932.4713 | O64: 10.58163048 | P64: 22.07690802 | Q64: 32.29028242 | R64: 35.32231754 | T64: 615.026 | U64: 2.056183748
D65: 1.227164144 | E65: 0.6598176108 | F65: 0.1448926625 | G65: 0.07097107479 | H65: 1778.868789 | I65: 1104.339779 | J65: 3269.3128 | K65: 2412.1169 | L65: 3873.1474 | M65: 2473.9137 | N65: 2995.092 | O65: 10.50426112 | P65: 21.98310736 | Q65: 33.28928124 | R65: 37.06294676 | T65: 618.1736 | U65: 2.066706888
D66: 1.170205191 | E66: 0.7271482153 | F66: 0.1685641405 | G66: 0.07566792827 | H66: 1683.849328 | I66: 1045.037872 | J66: 3756.3847 | K66: 2551.519 | L66: 3389.6847 | M66: 2920.6589 | N66: 2446.419 | O66: 10.77859323 | P66: 27.17691654 | Q66: 35.28176352 | R66: 33.72118807 | T66: 559.3246 | U66: 1.869960234
D67: 1.393896559 | E67: 0.6079020193 | F67: 0.1601869197 | G67: 0.0989866896 | H67: 1818.043411 | I67: 1054.236946 | J67: 3957.4237 | K67: 2689.8495 | L67: 2957.0499 | M67: 2501.0759 | N67: 2587.5122 | O67: 10.90009841 | P67: 24.15519383 | Q67: 30.37200728 | R67: 34.61668028 | T67: 564.0581 | U67: 1.885785513
D68: 1.391226416 | E68: 0.7440615681 | F68: 0.192028872 | G68: 0.0717659246 | H68: 1614.763673 | I68: 1027.675648 | J68: 3812.7638 | K68: 2980.9771 | L68: 3587.1777 | M68: 2505.7337 | N68: 2855.6469 | O68: 9.662226055 | P68: 20.66373592 | Q68: 37.88391162 | R68: 38.8096422 | T68: 753.1632 | U68: 2.518010556
D69: 1.294254305 | E69: 0.6793052214 | F69: 0.1725458343 | G69: 0.08332640418 | H69: 1864.871247 | I69: 908.5840656 | J69: 3654.6291 | K69: 2388.1885 | L69: 3157.1924 | M69: 2414.2084 | N69: 2842.1462 | O69: 9.196925411 | P69: 23.68106108 | Q69: 34.97130117 | R69: 33.45816143 | T69: 693.5028 | U69: 2.318551029
D70: 1.290138485 | E70: 0.6363794483 | F70: 0.1512560458 | G70: 0.08772931627 | H70: 1668.187721 | I70: 880.1646324 | J70: 3299.9346 | K70: 3027.3219 | L70: 3710.047 | M70: 2848.6443 | N70: 3115.4095 | O70: 8.152477995 | P70: 25.06417259 | Q70: 35.74927188 | R70: 33.43129959 | T70: 614.6116 | U70: 2.054798489
D71: 1.254668684 | E71: 0.5945338614 | F71: 0.1802690194 | G71: 0.09536586571 | H71: 1899.534361 | I71: 794.9320132 | J71: 3505.9465 | K71: 2292.9733 | L71: 2908.4125 | M71: 2576.9856 | N71: 2398.2312 | O71: 8.226459044 | P71: 28.80290801 | Q71: 34.2397056 | R71: 37.0953348 | T71: 574.6197 | U71: 1.921095437
D72: 1.103213809 | E72: 0.7460579773 | F72: 0.1773315504 | G72: 0.08965094654 | H72: 1929.108629 | I72: 1050.793014 | J72: 3385.5073 | K72: 2428.1291 | L72: 3809.5233 | M72: 2563.4866 | N72: 2705.1237 | O72: 10.61014078 | P72: 28.72514776 | Q72: 38.23481822 | R72: 35.50949785 | T72: 527.041 | U72: 1.762028156
D73: 1.276269263 | E73: 0.7077097818 | F73: 0.1527137028 | G73: 0.08327003716 | H73: 1615.563768 | I73: 1048.298105 | J73: 3233.2187 | K73: 2993.3288 | L73: 3641.1013 | M73: 2868.9285 | N73: 3173.0988 | O73: 10.87968221 | P73: 25.20721712 | Q73: 33.72560904 | R73: 38.72773576 | T73: 478.3637 | U73: 1.599288141
D74: 1.280080779 | E74: 0.7134327821 | F74: 0.1607517673 | G74: 0.09395506969 | H74: 1703.219178 | I74: 1063.167363 | J74: 3672.0031 | K74: 2869.5514 | L74: 3346.7729 | M74: 2557.3498 | N74: 2429.9533 | O74: 10.54174042 | P74: 21.23762653 | Q74: 31.21091453 | R74: 34.92332625 | T74: 593.2246 | U74: 1.983296284
D75: 1.33457748 | E75: 0.6212701777 | F75: 0.1577258253 | G75: 0.09125679499 | H75: 1593.144976 | I75: 773.373773 | J75: 3993.2623 | K75: 2638.4711 | L75: 3520.0578 | M75: 2682.0488 | N75: 2909.5019 | O75: 10.50198948 | P75: 26.66694967 | Q75: 36.30199272 | R75: 35.2600277 | T75: 676.3067 | U75: 2.261060373
D76: 1.443739557 | E76: 0.644689727 | F76: 0.1559766272 | G76: 0.07731899149 | H76: 1969.866825 | I76: 943.5984834 | J76: 3534.99 | K76: 2297.7507 | L76: 3546.2876 | M76: 2603.019 | N76: 2711.0365 | O76: 9.168156051 | P76: 26.55544905 | Q76: 37.52292143 | R76: 33.32184194 | T76: 644.7724 | U76: 2.155633354
D77: 1.402952948 | E77: 0.7281300859 | F77: 0.1911818924 | G77: 0.07676375619 | H77: 1972.214799 | I77: 877.1979215 | J77: 3725.277 | K77: 2653.1651 | L77: 3710.6711 | M77: 2956.9101 | N77: 2681.4595 | O77: 10.23832979 | P77: 26.21254096 | Q77: 38.10497681 | R77: 30.89372581 | T77: 607.8359 | U77: 2.032145394
D78: 1.415143407 | E78: 0.6353758756 | F78: 0.1812456496 | G78: 0.08173429417 | H78: 2017.437916 | I78: 780.5421891 | J78: 3532.3314 | K78: 2344.2459 | L78: 3747.6007 | M78: 2633.6707 | N78: 2409.948 | O78: 10.00511921 | P78: 28.59896747 | Q78: 35.69805075 | R78: 32.2704417 | T78: 663.8607 | U78: 2.219450327
D79: 1.373176638 | E79: 0.5867493735 | F79: 0.1649114097 | G79: 0.0774910174 | H79: 2169.809015 | I79: 975.9429542 | J79: 3019.2386 | K79: 2646.5089 | L79: 3729.0899 | M79: 2332.6902 | N79: 2845.6937 | O79: 8.741501105 | P79: 19.62632164 | Q79: 36.81130434 | R79: 35.75204535 | T79: 613.2909 | U79: 2.05038279
D80: 1.440110278 | E80: 0.626759862 | F80: 0.1724964781 | G80: 0.07701375108 | H80: 1824.706889 | I80: 938.106018 | J80: 3506.6417 | K80: 2561.0953 | L80: 3473.3101 | M80: 2635.3209 | N80: 2747.1552 | O80: 9.120915795 | P80: 26.58837319 | Q80: 34.03555308 | R80: 35.997985 | T80: 557.5215 | U80: 1.863932047
D81: 1.324900086 | E81: 0.7084916242 | F81: 0.1763441387 | G81: 0.07520072842 | H81: 1784.33665 | I81: 878.5355114 | J81: 3051.5295 | K81: 2933.3885 | L81: 3840.4303 | M81: 2535.7397 | N81: 2821.5123 | O81: 8.662572978 | P81: 22.65316296 | Q81: 37.91458037 | R81: 35.41530149 | T81: 651.0508 | U81: 2.176623773
D82: 1.316868904 | E82: 0.6952846833 | F82: 0.1872802696 | G82: 0.08716913106 | H82: 2112.729602 | I82: 887.565372 | J82: 3878.2346 | K82: 2640.3247 | L82: 3055.8239 | M82: 2397.4346 | N82: 2622.9205 | O82: 10.76880842 | P82: 25.68946758 | Q82: 36.48169299 | R82: 34.70001499 | T82: 543.9965 | U82: 1.81871475
D83: 1.177279591 | E83: 0.6926631244 | F83: 0.195902258 | G83: 0.09244392892 | H83: 2069.340741 | I83: 802.0574287 | J83: 3188.5481 | K83: 2497.4774 | L83: 3405.1088 | M83: 2424.5652 | N83: 2734.8349 | O83: 10.87518488 | P83: 28.55432892 | Q83: 35.64460682 | R83: 34.25532328 | T83: 648.1212 | U83: 2.166829327
D84: 1.256019513 | E84: 0.6237563024 | F84: 0.1645953117 | G84: 0.08359690148 | H84: 1881.744996 | I84: 997.7026442 | J84: 2933.3406 | K84: 2690.4507 | L84: 4167.0548 | M84: 2360.7239 | N84: 2537.157 | O84: 10.72218819 | P84: 20.31282685 | Q84: 32.90417493 | R84: 34.70188883 | T84: 499.1943 | U84: 1.668929978
D85: 1.398478774 | E85: 0.622643568 | F85: 0.1599871281 | G85: 0.08950584506 | H85: 1820.174272 | I85: 883.7191856 | J85: 3533.2089 | K85: 2768.5658 | L85: 2954.3213 | M85: 2909.5979 | N85: 2973.9741 | O85: 10.35188963 | P85: 27.90436869 | Q85: 36.1926344 | R85: 31.50762565 | T85: 532.0703 | U85: 1.77884259
D86: 1.22489113 | E86: 0.6127434073 | F86: 0.1663432843 | G86: 0.07135015187 | H86: 1832.747102 | I86: 995.8692311 | J86: 3350.6498 | K86: 2675.2801 | L86: 3719.6503 | M86: 2660.8072 | N86: 2953.6447 | O86: 10.8802883 | P86: 21.73707011 | Q86: 33.52331317 | R86: 36.42988561 | T86: 616.916 | U86: 2.062502406
D87: 1.240082153 | E87: 0.583708659 | F87: 0.1795865059 | G87: 0.08943923283 | H87: 1921.029405 | I87: 1016.833624 | J87: 3601.9555 | K87: 2979.4321 | L87: 3470.9956 | M87: 2706.3361 | N87: 2999.4783 | O87: 8.676479967 | P87: 30.51316564 | Q87: 39.31563324 | R87: 32.57418168 | T87: 575.1734 | U87: 1.922946582
D88: 1.447960513 | E88: 0.7146429807 | F88: 0.165957044 | G88: 0.07372906314 | H88: 1680.435982 | I88: 1035.351346 | J88: 3385.9427 | K88: 2572.2627 | L88: 4110.1517 | M88: 2232.6752 | N88: 2507.9098 | O88: 9.339360079 | P88: 24.46194444 | Q88: 33.46917683 | R88: 34.7544208 | T88: 544.4165 | U88: 1.820118719
D89: 1.185736673 | E89: 0.6087325716 | F89: 0.1959951606 | G89: 0.07614461086 | H89: 1885.392409 | I89: 1049.183629 | J89: 3615.8283 | K89: 2829.0616 | L89: 3128.5045 | M89: 2901.492 | N89: 2518.8188 | O89: 10.68399789 | P89: 26.56683267 | Q89: 35.02453542 | R89: 35.09353969 | T89: 660.9583 | U89: 2.209746687
D90: 1.306681726 | E90: 0.7758969038 | F90: 0.190097654 | G90: 0.09525204035 | H90: 2058.389747 | I90: 1028.79855 | J90: 3487.324 | K90: 2544.3354 | L90: 3352.5505 | M90: 2617.6083 | N90: 2749.3572 | O90: 9.776284023 | P90: 25.62838316 | Q90: 36.02709439 | R90: 36.65204748 | T90: 559.3706 | U90: 1.870113996
D91: 1.185687841 | E91: 0.6853901606 | F91: 0.1820379009 | G91: 0.07227853703 | H91: 2110.16077 | I91: 1018.401232 | J91: 3498.9096 | K91: 2780.461 | L91: 3658.9745 | M91: 2540.1447 | N91: 2715.8817 | O91: 10.21948739 | P91: 29.00267437 | Q91: 33.88111701 | R91: 31.31646674 | T91: 617.4024 | U91: 2.064128687
D92: 1.30835999 | E92: 0.7260806891 | F92: 0.1549006251 | G92: 0.08508499947 | H92: 1708.294044 | I92: 1017.181028 | J92: 3249.5302 | K92: 2640.2839 | L92: 3778.8485 | M92: 3035.3018 | N92: 2757.8287 | O92: 10.93245244 | P92: 23.21974142 | Q92: 39.34023035 | R92: 30.65154213 | T92: 584.8939 | U92: 1.955444814
D93: 1.297718377 | E93: 0.6901697934 | F93: 0.174360797 | G93: 0.08428842405 | H93: 1822.871798 | I93: 1046.359897 | J93: 3602.512 | K93: 2318.4064 | L93: 3554.9722 | M93: 2515.7086 | N93: 2547.2801 | O93: 9.839995938 | P93: 28.49875519 | Q93: 35.57605221 | R93: 33.70843158 | T93: 538.2134 | U93: 1.799380176
D94: 1.313324118 | E94: 0.6148155377 | F94: 0.1624789539 | G94: 0.08607082623 | H94: 2088.160923 | I94: 943.5939766 | J94: 3691.8105 | K94: 2615.7862 | L94: 3450.6801 | M94: 2553.9959 | N94: 2629.4313 | O94: 9.668020369 | P94: 30.14847248 | Q94: 35.5966362 | R94: 31.63974487 | T94: 584.4764 | U94: 1.954048976
D95: 1.534946643 | E95: 0.6756853033 | F95: 0.1801560489 | G95: 0.0824416442 | H95: 2039.090431 | I95: 1055.054776 | J95: 3721.4418 | K95: 2721.9047 | L95: 3734.8386 | M95: 2630.2721 | N95: 2797.2727 | O95: 9.700875392 | P95: 23.33241036 | Q95: 34.25288469 | R95: 38.45180225 | T95: 604.6986 | U95: 2.021656779
D96: 1.536249963 | E96: 0.6337147696 | F96: 0.1876977301 | G96: 0.09169725924 | H96: 2199.741282 | I96: 999.8984195 | J96: 3082.9044 | K96: 2414.3346 | L96: 3415.9797 | M96: 2352.6934 | N96: 3100.03 | O96: 9.20618319 | P96: 20.48264123 | Q96: 35.74444098 | R96: 34.90823284 | T96: 773.7491 | U96: 2.586834291
D97: 1.446844708 | E97: 0.5759770768 | F97: 0.1607906214 | G97: 0.08886820268 | H97: 1862.15874 | I97: 947.2829187 | J97: 3399.2602 | K97: 2597.293 | L97: 3469.7256 | M97: 2857.7755 | N97: 2683.0148 | O97: 10.43879708 | P97: 23.52049706 | Q97: 31.99962565 | R97: 31.99595163 | T97: 653.0524 | U97: 2.183315592
D98: 1.349742228 | E98: 0.7003105998 | F98: 0.170034499 | G98: 0.07637385134 | H98: 2036.483016 | I98: 1006.112272 | J98: 3802.605 | K98: 2638.2679 | L98: 3405.9181 | M98: 2366.2103 | N98: 2728.662 | O98: 9.992466704 | P98: 25.87140173 | Q98: 36.39202847 | R98: 36.10251759 | T98: 664.7692 | U98: 2.222487567
D99: 1.547319286 | E99: 0.6698858752 | F99: 0.1551026379 | G99: 0.09063576427 | H99: 1661.646234 | I99: 976.4644765 | J99: 3796.9658 | K99: 2285.3472 | L99: 3081.6781 | M99: 2835.6305 | N99: 2733.9439 | O99: 11.05389194 | P99: 23.81766712 | Q99: 36.36026697 | R99: 36.21735598 | T99: 656.0332 | U99: 2.193280866
D100: 1.265743488 | E100: 0.5932343609 | F100: 0.1802084558 | G100: 0.08632769796 | H100: 2019.803985 | I100: 963.5540667 | J100: 3738.8419 | K100: 2384.3721 | L100: 3869.9754 | M100: 2878.7199 | N100: 3019.758 | O100: 9.185497074 | P100: 23.31131406 | Q100: 37.02337858 | R100: 35.05760784 | T100: 702.219 | U100: 2.347691624
D101: 1.387410756 | E101: 0.7025023974 | F101: 0.1555580477 | G101: 0.09521169675 | H101: 2181.691708 | I101: 1063.344354 | J101: 3676.7711 | K101: 2659.9107 | L101: 2990.8052 | M101: 2643.2473 | N101: 2836.6759 | O101: 9.01778006 | P101: 20.49021915 | Q101: 35.71526253 | R101: 36.44838336 | T101: 611.8992 | U101: 2.045730314
D102: 1.079866927 | E102: 0.6045777691 | F102: 0.1727396985 | G102: 0.07356512879 | H102: 1720.829669 | I102: 865.6299307 | J102: 3680.1992 | K102: 2882.1694 | L102: 3128.4994 | M102: 2559.6997 | N102: 2706.3093 | O102: 10.10620978 | P102: 22.98030729 | Q102: 35.82310012 | R102: 35.79108418 | T102: 688.7123 | U102: 2.302535263
D103: 1.396362857 | E103: 0.6232314594 | F103: 0.1783478672 | G103: 0.09039909455 | H103: 1930.951436 | I103: 891.9375848 | J103: 3597.7586 | K103: 2851.2719 | L103: 4016.9794 | M103: 2736.769 | N103: 2594.6012 | O103: 9.059831806 | P103: 23.46757397 | Q103: 37.47254204 | R103: 37.60532298 | T103: 510.9719 | U103: 1.708305126
D104: 1.267894265 | E104: 0.7057553039 | F104: 0.172066208 | G104: 0.09364018679 | H104: 1737.843376 | I104: 855.6844506 | J104: 3400.6795 | K104: 2662.782 | L104: 4142.1405 | M104: 2513.2822 | N104: 2859.5733 | O104: 10.3872316 | P104: 27.52873663 | Q104: 38.58318351 | R104: 30.85400361 | T104: 635.0323 | U104: 2.12306967
D105: 1.368863829 | E105: 0.5683313691 | F105: 0.1700470384 | G105: 0.09332115344 | H105: 1878.260532 | I105: 911.8541507 | J105: 3272.9496 | K105: 2988.7408 | L105: 3666.2337 | M105: 2419.6587 | N105: 2717.8597 | O105: 9.142259839 | P105: 23.9693564 | Q105: 31.93207189 | R105: 38.51209977 | T105: 548.9097 | U105: 1.835140547
D106: 1.183554822 | E106: 0.7270465378 | F106: 0.1975145415 | G106: 0.08502330176 | H106: 1882.694702 | I106: 1013.664217 | J106: 3515.3448 | K106: 2964.4446 | L106: 3883.1818 | M106: 2473.2907 | N106: 2454.6559 | O106: 9.032593407 | P106: 25.09087825 | Q106: 36.09209152 | R106: 35.07966489 | T106: 623.4507 | U106: 2.084349573
D107: 1.145595579 | E107: 0.6115301838 | F107: 0.16278951 | G107: 0.08704615759 | H107: 1637.302131 | I107: 927.3669467 | J107: 3650.4946 | K107: 2754.036 | L107: 3417.8947 | M107: 2944.4404 | N107: 3179.9025 | O107: 10.93107441 | P107: 29.29631348 | Q107: 34.58331148 | R107: 34.50749569 | T107: 580.3525 | U107: 1.940261657
D108: 1.218074149 | E108: 0.7003854192 | F108: 0.1757524753 | G108: 0.09053361669 | H108: 2128.691263 | I108: 859.3677022 | J108: 3462.6161 | K108: 2367.8719 | L108: 3013.528 | M108: 2602.0774 | N108: 2716.9156 | O108: 9.853195364 | P108: 24.47759569 | Q108: 37.76068009 | R108: 33.12648723 | T108: 547.4659 | U108: 1.83031383
D109: 1.516366815 | E109: 0.6821420238 | F109: 0.1734564158 | G109: 0.07622874325 | H109: 2074.916347 | I109: 1037.056727 | J109: 3754.8299 | K109: 2712.0399 | L109: 3062.9114 | M109: 2609.8011 | N109: 2659.7778 | O109: 9.624707538 | P109: 27.02872 | Q109: 32.33458215 | R109: 37.50245965 | T109: 529.2433 | U109: 1.769391066
D110: 1.166566188 | E110: 0.6701318923 | F110: 0.1711926894 | G110: 0.1004834023 | H110: 1950.447723 | I110: 945.9343142 | J110: 3780.1444 | K110: 2815.3788 | L110: 3960.2079 | M110: 2241.6037 | N110: 3223.6759 | O110: 10.54898354 | P110: 28.66859501 | Q110: 33.6653502 | R110: 34.69276741 | T110: 767.0127 | U110: 2.564312815
D111: 1.142372152 | E111: 0.6241332652 | F111: 0.1965028739 | G111: 0.09202454079 | H111: 2086.985056 | I111: 899.5061499 | J111: 3560.1505 | K111: 2265.6109 | L111: 3340.3591 | M111: 2821.968 | N111: 3158.9731 | O111: 9.470939444 | P111: 21.7597808 | Q111: 34.78076835 | R111: 37.16692209 | T111: 627.6316 | U111: 2.098327466
D112: 1.218764946 | E112: 0.7283684624 | F112: 0.173017038 | G112: 0.08836394741 | H112: 1916.706348 | I112: 897.8449484 | J112: 3896.3094 | K112: 2954.3919 | L112: 3534.6463 | M112: 2884.9682 | N112: 2471.0768 | O112: 10.18980817 | P112: 20.01842517 | Q112: 33.78387469 | R112: 34.78696848 | T112: 566.3087 | U112: 1.893309869
D113: 1.132865319 | E113: 0.6926453069 | F113: 0.1687934643 | G113: 0.07266688674 | H113: 1776.33076 | I113: 1088.966233 | J113: 3719.0665 | K113: 2915.2585 | L113: 3636.2742 | M113: 2703.8048 | N113: 2947.729 | O113: 10.2897612 | P113: 23.71084165 | Q113: 38.58035207 | R113: 39.3781655 | T113: 674.2465 | U113: 2.254172425
D114: 1.371071181 | E114: 0.6390618036 | F114: 0.1525858133 | G114: 0.09130874453 | H114: 1702.250424 | I114: 950.9270946 | J114: 3813.6277 | K114: 2729.3156 | L114: 3641.5531 | M114: 2246.344 | N114: 2918.6295 | O114: 10.06725991 | P114: 25.49065454 | Q114: 34.5619641 | R114: 36.33584503 | T114: 549.2237 | U114: 1.836190396
D115: 1.347594825 | E115: 0.7639127207 | F115: 0.1793803849 | G115: 0.09155127124 | H115: 2046.779001 | I115: 969.3700604 | J115: 3485.6873 | K115: 3070.3248 | L115: 3653.8369 | M115: 2728.7532 | N115: 2921.6937 | O115: 9.31847733 | P115: 23.44890848 | Q115: 35.48015834 | R115: 32.19788221 | T115: 675.5766 | U115: 2.258619284
D116: 1.319262509 | E116: 0.6901792659 | F116: 0.1653543606 | G116: 0.09867011686 | H116: 1895.77745 | I116: 881.4811523 | J116: 3294.0679 | K116: 2836.5605 | L116: 3753.0993 | M116: 2342.4756 | N116: 2601.461 | O116: 10.78531078 | P116: 26.93468886 | Q116: 31.79006749 | R116: 35.71985181 | T116: 687.7765 | U116: 2.299406707
D117: 1.255004905 | E117: 0.675355524 | F117: 0.158239745 | G117: 0.09367762354 | H117: 1723.792813 | I117: 818.0396132 | J117: 3644.4405 | K117: 2774.077 | L117: 3248.2706 | M117: 2507.9117 | N117: 2935.3398 | O117: 8.705928785 | P117: 19.48458053 | Q117: 33.0620932 | R117: 34.72776077 | T117: 617.0619 | U117: 2.062990348
D118: 1.285152023 | E118: 0.650039407 | F118: 0.1961604299 | G118: 0.08399254515 | H118: 1860.714733 | I118: 861.8667448 | J118: 3444.3184 | K118: 2825.2266 | L118: 3678.1315 | M118: 2682.6895 | N118: 2974.3164 | O118: 8.916363559 | P118: 27.45350054 | Q118: 31.14654454 | R118: 32.38104116 | T118: 641.1955 | U118: 2.143674832
D119: 1.184211848 | E119: 0.7600691989 | F119: 0.1948214722 | G119: 0.08072758531 | H119: 1818.944514 | I119: 972.0334666 | J119: 3774.5716 | K119: 2789.6707 | L119: 3638.5833 | M119: 2558.32 | N119: 2873.8649 | O119: 10.16303915 | P119: 24.78896828 | Q119: 34.13228523 | R119: 32.73857268 | T119: 652.1347 | U119: 2.180247442
D120: 1.178435561 | E120: 0.7077290305 | F120: 0.1565372559 | G120: 0.09443019847 | H120: 1958.872008 | I120: 1069.296554 | J120: 3892.7224 | K120: 2396.2714 | L120: 3706.9312 | M120: 2749.3989 | N120: 2631.7192 | O120: 9.525096088 | P120: 25.0038752 | Q120: 37.84213229 | R120: 35.04226905 | T120: 647.3676 | U120: 2.164309839
D121: 1.140900235 | E121: 0.6429797496 | F121: 0.1635043903 | G121: 0.08305260361 | H121: 1994.024174 | I121: 1094.007965 | J121: 3114.6399 | K121: 2348.3587 | L121: 3569.3219 | M121: 2890.0009 | N121: 2331.2287 | O121: 8.257820011 | P121: 26.24708543 | Q121: 34.42232111 | R121: 37.21121927 | T121: 572.0312 | U121: 1.912441584
D122: 1.365542844 | E122: 0.6125134337 | F122: 0.1695243356 | G122: 0.09128025386 | H122: 1784.686457 | I122: 1092.92624 | J122: 2907.5227 | K122: 2614.0502 | L122: 3651.4296 | M122: 2458.5029 | N122: 2580.4133 | O122: 9.95196612 | P122: 19.85601031 | Q122: 36.04112034 | R122: 33.17185561 | T122: 459.8012 | U122: 1.537229088
D123: 1.268549664 | E123: 0.6166870661 | F123: 0.1677469372 | G123: 0.08595366232 | H123: 1807.000298 | I123: 1021.233473 | J123: 3664.2031 | K123: 2673.5636 | L123: 3116.0578 | M123: 2497.076 | N123: 2653.6081 | O123: 9.881179661 | P123: 23.81372054 | Q123: 35.55267268 | R123: 31.19538324 | T123: 528.9445 | U123: 1.768392045
D124: 1.225846991 | E124: 0.6426591647 | F124: 0.1676078242 | G124: 0.08463096036 | H124: 1986.939037 | I124: 973.1735264 | J124: 3059.2426 | K124: 2864.505 | L124: 3589.8197 | M124: 2732.0034 | N124: 2754.5466 | O124: 8.871346629 | P124: 28.05966008 | Q124: 33.84429805 | R124: 37.84443294 | T124: 595.0011 | U124: 1.989235772
D125: 1.35831769 | E125: 0.6027306819 | F125: 0.1917389829 | G125: 0.08394937074 | H125: 1861.290151 | I125: 944.9208192 | J125: 3699.0545 | K125: 2676.2738 | L125: 3323.669 | M125: 2695.1764 | N125: 3059.7427 | O125: 9.565345844 | P125: 27.36390163 | Q125: 30.65097568 | R125: 36.92264038 | T125: 519.7402 | U125: 1.73761978
D126: 1.277910063 | E126: 0.6763163978 | F126: 0.1585726429 | G126: 0.08872106939 | H126: 1655.72932 | I126: 937.0502418 | J126: 3464.1921 | K126: 2417.8801 | L126: 3810.6675 | M126: 2470.5755 | N126: 2759.2932 | O126: 10.72458847 | P126: 19.11787764 | Q126: 31.19692823 | R126: 35.74653338 | T126: 705.7542 | U126: 2.359510752

Sheet 1.START
A11: Return On Investment Calculator for Person-Centered Care Program
L20: Once opened, press CTRL and the Contents Item to move to that section.

Sheet 2.Flow

Sheet 3.Population Data
A1: 3. Eligible Population | B1: 2000 | C1: Members
A3: Levels of Utilization
B4: Group | C4: Percentage Cut Off | D4: Range | E4: Level Members | F4: Test Group
A5: Most Severe Members | B5: Level 1 | C5: 0.1 | D5: =IF(ISNUMBER(C5),"0 to "&TEXT(C5,"##%"),"") -> 0 to 10% | E5: =IF(TESTONLY,F5,IFERROR('3.Population Data'!C5*'3.Population Data'!B1,0)) -> 200 | K5: FALSE | L5: ="0 to " & TEXT(F5/B1,"##.#%") -> 0 to .%
A6: Next Most Severe Members | B6: Level 2 | C6: 0.2 | D6: =IF(E6=0,"",TEXT(C5,"##%") & " to " & TEXT(C6,"##%")) -> 10% to 20% | E6: =IFERROR(IF(OR(TESTONLY=TRUE,C6=0),0,'3.Population Data'!B1*('3.Population Data'!C6-'3.Population Data'!C5)),0) -> 200
D7: Total Members Targeted | E7: =IF(K5,F5,E5+E6) -> 400

Sheet 4.Costs
B1: 4a. Launch Costs
B2: (one time charges to start-up PCC)
B3: Item | C3: Amount
B4: Training | C4: 50000
B5: Equipment | C5: 25000
B6: Other | C6: 25000
B7: Recruitment | C7: 25000
B8: Remodel/Costruction | C8: 15000
B19: Total Launch Costs | C19: =SUM(C4:C18) -> 140000
B22: 4b. Operating Costs | D22: Target Population set at: | E22: ='3.Population Data'!E7 -> 400
B23: ="Fixed Costs for PCC" -> Fixed Costs for PCC
B24: Position | C24: FTE | D24: Annual Cost | E24: Annual Program Cost
B25: Program Director | C25: 1 | D25: 150000 | E25: =IFERROR(IF(C25="",1,C25)*D25,0) -> 150000
B26: Medical Director | C26: 0.5 | D26: 200000 | E26: =IFERROR(IF(C26="",1,C26)*D26,0) -> 100000
B27: Nurse Practitioner | C27: 2 | D27: 95000 | E27: 190000
B28: Social Worker | C28: 2 | D28: 42000 | E28: 84000
B29: Medical Assistant | C29: 1 | D29: 45000 | E29: 45000
B30: Pharmacist | C30: 0.5 | D30: 120000 | E30: 60000
B31: Mental Health Liaison | C31: 0.1 | D31: 175000 | E31: 17500
D32: 1000 | E32: 1000
E33: 0
E34: 0
E35: 0
E36: 0
E37: 0
E38: 0
E39: 0
D40: Total Fixed Costs | E40: =SUM(E25:E39) -> 647500
C42: Overhead % | D42: 0.1 | E42: =IFERROR(E40*D42,0) -> 64750
D43: Total Fixed Costs with O/H | E43: =E40+E42 -> 712250
D44: PMPM FC | E44: =IFERROR(E43/12/E22,0) -> 148.3854167
B47: 4c. Variable Costs for Direct Services | C47: Per Member per Month
B48: Item | C48: PMPM
B49: Mileage | C49: 36
B50: Supplies | C50: 8
B51: Other | C51: 36
B52: Misc | C52: 11
B59: Total | C59: =SUM(C49:C58) -> 91
B60: Overhead as a percent of Total Var.Costs | C60: 0.1 | D60: =IFERROR(C60*C59,0) -> 9.1
C61: Average Variable Costs with overhead PMPM | D61: =C59+D60 -> 100.1

Sheet 5.Additional Utilizations
B1: 5. Additional Utilizations
B2: Increases in Utilization | C2: Time Period: Day, Month, Year
F3: ="Percent of " & TEXT('3.Population Data'!E7,"#") & " Members Served" -> Percent of 400 Members Served
A4: Exclude from Analysis | B4: Service | D4: Costs Per | E4: Added Units | G4: Weighted PMPM
B5: Behavioral Health | C5: Year | D5: 125 | E5: 2 | F5: 0.45 | G5: =IFERROR(IF(C5="Year",1/12,IF(C5="day",30,1))*E5*D5*F5*(1-N5),0) -> 9.375 | M5: FALSE | N5: =IF(M5,1,0) -> 0
B6: Rehabilitation Services | C6: Month | D6: 85 | E6: 1 | F6: 0.25 | G6: =IFERROR(IF(C6="Year",1/12,IF(C6="day",30,1))*E6*D6*F6*(1-N6),0) -> 21.25 | M6: FALSE | N6: 0 | O6: Day
B7: Home Delivered Meals | C7: Month | D7: 10 | E7: 6 | F7: 0.1 | G7: 0 | M7: TRUE | N7: =IF(M7,1,0) -> 1 | O7: Month
B8: In-Home Modifications | C8: Year | D8: 1000 | E8: 1 | F8: 0.6 | G8: 0 | M8: TRUE | N8: 1 | O8: Year
B9: Caregiver Education & Support | C9: Month | D9: 25 | E9: 1 | F9: 0.5 | G9: 12.5 | M9: FALSE | N9: 0
B10: Transport to Appointments | C10: Month | D10: 25 | E10: 1 | F10: 0.3 | G10: 7.5 | M10: FALSE | N10: 0
G11: 0 | M11: FALSE | N11: 0
G12: 0 | M12: FALSE | N12: 0
G13: 0 | M13: FALSE | N13: 0
G14: 0 | M14: FALSE | N14: 0
G15: 0 | M15: FALSE | N15: 0
G16: 0 | M16: FALSE | N16: 0
G17: 0 | M17: FALSE | N17: =IF(M17,1,0) -> 0
G18: 0 | M18: FALSE | N18: 0
E19: Total Other Services Increases | G19: =SUM(G5:G18) -> 50.625

Sheet 6.Medical Utilization
A1: 6a. Medical Utilization Data | L1: 6e. Change in Utilization
A2: Exclude from Analysis | C2: Indicates Monte Carlo Variable | L2: All Levels | AJ2: Cost Savings
B3: EVENT | C3: Metric | D3: Base Units Level 1 | E3: =IF(TESTONLY=TRUE,"Level 2 Units Ignored","Base Units Level 2") -> Base Units Level 2 | F3: Costs Per | G3: Time Period | H3: Based on Patient Count | I3: Base Costs Level 1 PMPM | J3: =IF(TESTONLY=TRUE, "Level 2 Costs Ignored","Base Costs Level 2 PMPM") -> Base Costs Level 2 PMPM | P3: Percent Change | Q3: Costs Reduced Level 1 PMPM | R3: Costs Reduced Level 2 PMPM | X3: Baseline costs1 | Y3: Baseline Costs 2 | AF3: Exclude | AJ3: Level1 | AK3: Level2
B4: Primary Care | C4: Visits | D4: 1 | E4: 0.5 | F4: 125 | H4: 1 | I4: =IFERROR(D4*$F4*$AE4/IF($H4=0,1,$H4),0) -> 125 | J4: =IFERROR(E4*$F4*$AE4/IF($H4=0,1,$H4),0) -> 62.5 | L4: -20% to +20% | P4: =IFERROR(AA4/100-0.2,0) -> 0.2 | Q4: =IFERROR(-P4*I4*NOT(AF4),0) -> -25 | R4: =IFERROR(-J4*P4*NOT(AF4),0) -> -12.5 | X4: =IF($AF4,0,I4) -> 125 | Y4: =IF($AF4,0,J4) -> 62.5 | AA4: 40 | AD4: 1 | AE4: =VLOOKUP(AD4,AG$4:AH$5,2,0) -> 1 | AF4: FALSE | AG4: 1 | AH4: 1 | AJ4: =IF($AF4,0,Q4) -> -25 | AK4: =IF(NOT(TESTONLY),IF($AF4,0,R4),0) -> -12.5
B5: Specialty Care | C5: Visits | D5: 4 | E5: 2 | F5: 200 | H5: 1 | I5: =IFERROR(D5*$F5*$AE5/IF($H5=0,1,$H5),0) -> 66.66666667 | J5: =IFERROR(E5*$F5*$AE5/IF($H5=0,1,$H5),0) -> 33.33333333 | L5: -20% to +20% | P5: =IFERROR(AA5/100-0.2,0) -> -0.1 | Q5: =IFERROR(-P5*I5*NOT(AF5),0) -> 6.666666667 | R5: =IFERROR(-J5*P5*NOT(AF5),0) -> 3.333333333 | X5: =IF($AF5,0,I5) -> 66.66666667 | Y5: =IF($AF5,0,J5) -> 33.33333333 | AA5: 10 | AD5: 2 | AE5: =VLOOKUP(AD5,AG$4:AH$5,2,0) -> 0.08333333333 | AF5: FALSE | AG5: 2 | AH5: 0.08333333333 | AJ5: =IF($AF5,0,Q5) -> 6.666666667 | AK5: 3.333333333
B6: Emergency Dept. | C6: Visits | D6: 1890 | E6: 945 | F6: 2800 | H6: 1000 | I6: 441 | J6: 220.5 | L6: -60% to 0% | P6: =IFERROR(-(60-AA6)/100,0) -> -0.35 | Q6: 154.35 | R6: 77.175 | X6: 441 | Y6: 220.5 | AA6: 25 | AD6: 2 | AE6: 0.08333333333 | AF6: FALSE | AJ6: 154.35 | AK6: 77.175
I7: 0 | J7: 0 | L7: -60% to 0% | P7: =IFERROR(-(60-AA7)/100,0) -> 0 | Q7: 0 | R7: 0 | X7: 0 | Y7: 0 | AA7: 60 | AD7: 2 | AE7: 0.08333333333 | AF7: FALSE | AJ7: 0 | AK7: 0
I8: 0 | J8: 0 | L8: -60% to 0% | P8: 0 | Q8: 0 | R8: 0 | X8: 0 | Y8: 0 | AA8: 60 | AD8: 2 | AE8: 0.08333333333 | AF8: FALSE | AJ8: 0 | AK8: 0
I9: 0 | J9: 0 | L9: -60% to 0% | P9: 0 | Q9: 0 | R9: 0 | X9: 0 | Y9: 0 | AA9: 60 | AD9: 2 | AE9: 0.08333333333 | AF9: TRUE | AJ9: 0 | AK9: 0
I10: 0 | J10: 0 | L10: -60% to 0% | P10: 0 | Q10: 0 | R10: 0 | X10: 0 | Y10: 0 | AA10: 60 | AD10: 2 | AE10: 0.08333333333 | AF10: TRUE | AJ10: 0 | AK10: 0
I11: 0 | J11: 0 | L11: -60% to 0% | P11: 0 | Q11: 0 | R11: 0 | X11: 0 | Y11: 0 | AA11: 60 | AD11: 2 | AE11: 0.08333333333 | AF11: TRUE | AJ11: 0 | AK11: 0
I12: 0 | J12: 0 | L12: -60% to 0% | P12: 0 | Q12: 0 | R12: 0 | X12: 0 | Y12: 0 | AA12: 60 | AD12: 2 | AE12: 0.08333333333 | AF12: TRUE | AJ12: 0 | AK12: 0
AJ14: Members
B15: 6b. Inpatient Events | L15: 6f. Change in Utilization | AJ15: =IF(TESTONLY,'3.Population Data'!F5,'3.Population Data'!E5) -> 200 | AK15: =IF(TESTONLY,0,'3.Population Data'!E6) -> 200
L16: All Levels
A17: Exclude from Analysis | B17: Events | C17: Base Level 1 | D17: =IF(TESTONLY=TRUE,"Level 2 Units Ignored","Base Level 2") -> Base Level 2 | G17: Time Period | H17: Based on Patient Count | I17: Base Level 1 PMPM | J17: =IF(TESTONLY=TRUE,"Level 2 Units Ignored","Base Level 2 PMPM") -> Base Level 2 PMPM | P17: Percent Change | Q17: Costs Reduced Level 1 PMPM | R17: Costs Reduced Level 2 PMPM | AC17: =RETURNONINV -> 2.056806588 | AD17: ='8a.Summary'!D36 -> 1.5
B18: Hospital Admissions | C18: 1.33 | D18: 0.665 | H18: 1 | I18: =IFERROR(basehospday*C25*V18*(1-AF18),0) -> 2521.458333 | J18: =IFERROR(W18*D25*D32*(1-AF18),0) -> 581.875 | L18: -60% to 0% | P18: =IFERROR(-(60-AA18)/100,0) -> -0.25 | Q18: =IFERROR(I18-(X18*X25*X32),0) -> 1074.771615 | R18: =IFERROR(J18-(Y18*Y25*Y32),0) -> 248.0242187 | V18: =C18/(IF($H18=0,1,$H18)*IF($AD18=2,12,1)) -> 0.1108333333 | W18: =D18/(IF($H18=0,1,$H18)*IF($AD18=2,12,1)) -> 0.05541666667 | X18: =+(1+$P18)*V18*(1-$AF18) -> 0.083125 | Y18: 0.0415625 | AA18: 35 | AD18: 2 | AF18: FALSE | AJ18: =IF($AF18,0,K18) -> 0 | AK18: =IF(NOT(TESTONLY),IF($AF18,0,R18),0) -> 248.0242187
B19: Hospital Readmissions | C19: 0.17 | D19: 0.085 | H19: 1 | I19: =IFERROR(C33*C26*V19*(1-AF19),0) -> 297.5 | J19: =IFERROR(W19*D26*D33*(1-AF19),0) -> 65.078125 | L19: -60% to 0% | P19: =IFERROR(-(60-AA19)/100,0) -> -0.25 | Q19: =IFERROR(I19-(X19*X26*X33),0) -> 126.809375 | R19: 27.73955078 | V19: =C19/(IF(H19=0,1,H19)*IF(AD19=2,12,1)) -> 0.01416666667 | W19: =D19/(IF($H19=0,1,$H19)*IF($AD19=2,12,1)) -> 0.007083333333 | X19: 0.010625 | Y19: 0.0053125 | AA19: 35 | AD19: 2 | AF19: FALSE | AJ19: =IF($AF19,0,K19) -> 0 | AK19: =IF(NOT(TESTONLY),IF($AF19,0,R19),0) -> 27.73955078
B20: Skilled Nursing Admissions | C20: 0.33 | D20: 0.165 | H20: 1 | I20: =IFERROR(C34*C27*V20*(1-AF20),0) -> 165 | J20: 46.40625 | L20: -60% to 0% | P20: -0.15 | Q20: =IFERROR(I20-(X20*X27*X34),0) -> 64.02 | R20: 18.005625 | V20: =C20/(IF(H20=0,1,H20)*IF(AD20=2,12,1)) -> 0.0275 | W20: =D20/(IF($H20=0,1,$H20)*IF($AD20=2,12,1)) -> 0.01375 | X20: 0.023375 | Y20: 0.0116875 | AA20: 45 | AD20: 2 | AF20: FALSE | AJ20: =IF($AF20,0,K20) -> 0 | AK20: =IF(NOT(TESTONLY),IF($AF20,0,R20),0) -> 18.005625
I21: 0 | J21: 0 | L21: -60% to 0% | P21: 0 | Q21: =IFERROR(I21-(X21*X28*X35),0) -> 0 | R21: 0 | V21: =C21/(IF(H21=0,1,H21)*IF(AD21=2,12,1)) -> 0 | W21: =D21/(IF($H21=0,1,$H21)*IF($AD21=2,12,1)) -> 0 | X21: 0 | Y21: 0 | AA21: 60 | AD21: 2 | AF21: FALSE | AJ21: =IF($AF21,0,K21) -> 0 | AK21: =IF(NOT(TESTONLY),IF($AF21,0,R21),0) -> 0
I22: 0 | J22: 0 | L22: -60% to 0% | P22: 0 | Q22: =IFERROR(I22-(X22*X29*X36),0) -> 0 | R22: 0 | V22: =C22/(IF(H22=0,1,H22)*IF(AD22=2,12,1)) -> 0 | W22: =D22/(IF($H22=0,1,$H22)*IF($AD22=2,12,1)) -> 0 | X22: 0 | Y22: 0 | AA22: 60 | AF22: TRUE | AJ22: =IF($AF22,0,K22) -> 0 | AK22: =IF(NOT(TESTONLY),IF($AF22,0,R22),0) -> 0
B24: 6c. Length of Stay | C24: =C17 -> Base Level 1 | D24: =D17 -> Base Level 2 | F24: 6g. Length of Stay Change
B25: =IF(ISBLANK(B18),"",B18) -> Hospital Admissions | C25: 6.5 | D25: 4 | F25: -60% to 0% | J25: =IFERROR(-(60-AA25)/100,0) -> -0.1 | X25: =+(1+$J25)*C25*(1-$AF25) -> 5.85 | Y25: =+(1+$J25)*D25*(1-$AF25) -> 3.6 | AA25: 50
B26: =IF(ISBLANK(B19),"",B19) -> Hospital Readmissions | C26: 6 | D26: 3.5 | F26: -60% to 0% | J26: =IFERROR(-(60-AA26)/100,0) -> -0.1 | X26: =+(1+$J26)*C26*(1-$AF26) -> 5.4 | Y26: =+(1+$J26)*D26*(1-$AF26) -> 3.15 | AA26: 50 | AJ26: =SUM(AJ18:AJ22)+SUM(AJ4:AJ12) -> 136.0166667 | AK26: =SUM(AK18:AK22)+SUM(AK4:AK12) -> 361.7777279
B27: Skilled Nursing Admissions | C27: 20 | D27: 15 | F27: -60% to 0% | J27: -0.2 | X27: =+(1+$J27)*C27*(1-$AF27) -> 16 | Y27: =+(1+$J27)*D27*(1-$AF27) -> 12 | AA27: 40 | AJ27: =AJ15 -> 200 | AK27: =AK15 -> 200
F28: -60% to 0% | J28: 0 | X28: 0 | Y28: 0 | AA28: 60
F29: -60% to 0% | J29: 0 | X29: 0 | Y29: 0 | AA29: 60 | AJ29: =SUMPRODUCT(AJ26:AK26,AJ27:AK27)/SUM(AJ27:AK27) -> 248.8971973
B31: 6d. Average Daily Costs | C31: Base Level 1 | D31: =D24 -> Base Level 2 | F31: 6h. Average Cost per Day Change
B32: =IF(ISBLANK(B18),"",B25) -> Hospital Admissions | C32: 3500 | D32: 2625 | F32: -60% to 0% | J32: =IFERROR(-(60-AA32)/100,0) -> -0.15 | X32: =+(1+$J32)*C32*(1-$AF32) -> 2975 | Y32: =+(1+$J32)*D32*(1-$AF32) -> 2231.25 | AA32: 45
B33: =IF(ISBLANK(B19),"",B26) -> Hospital Readmissions | C33: 3500 | D33: 2625 | F33: -60% to 0% | J33: =IFERROR(-(60-AA33)/100,0) -> -0.15 | X33: 2975 | Y33: 2231.25 | AA33: 45
B34: Skilled Nursing Admissions | C34: 300 | D34: 225 | F34: -60% to 0% | J34: -0.1 | X34: 270 | Y34: 202.5 | AA34: 50
F35: -60% to 0% | J35: 0 | X35: 0 | Y35: 0 | AA35: 60
B36: =IF(ISBLANK(B22),"",B29) ->  | F36: -60% to 0% | J36: 0 | X36: 0 | Y36: 0 | AA36: 60
B38: 6i. Total Medical Utilization Savings | X38: Total PMPM | Y38: Lev1 | Z38: Lev2
D39: Level 1 | E39: Level 2 | F39: Weighted | X39: Base | Y39: =SUM(I18:I22)+SUM(I4:I12) -> 3616.625 | Z39: =IF(TESTONLY=TRUE,0,SUM(J18:J22)+SUM(J4:J12)) -> 1009.692708
C40: Members | D40: =AJ15 -> 200 | E40: =AK27 -> 200 | X40: Reduced | Y40: =SUM(Q18:Q22)+SUM(Q4:Q12) -> 1401.617656 | Z40: =IF(TESTONLY=TRUE,0,SUM(R18:R22)+SUM(R4:R12)) -> 361.7777279
C41: Baseline Costs PMPM | D41: =Y39 -> 3616.625 | E41: =Z39 -> 1009.692708 | F41: =IFERROR(X42,0) -> 2313.158854
C42: Reduced Costs PMPM | D42: =Y40 -> 1401.617656 | E42: =Z40 -> 361.7777279 | F42: =IFERROR(X43,0) -> 881.6976921 | X42: =(D40*D41+E40*E41)/(D40+E40) -> 2313.158854
C43: Percent Reduction | D43: =IFERROR(D42/D41,0) -> 0.3875485173 | E43: =IF(E41=0,0,E42/E41) -> 0.3583047841 | F43: =IFERROR(F42/F41,0) -> 0.3811660797 | X43: =(D42*D40+E40*E42)/(D40+E40) -> 881.6976921
AA82: 0
AA83: 10

Sheet 7.Revenue Enhancements
B2: Optional LTSS *
B3: Option | C3: PMPM | D3: Select CPOs
B4: Home delivered meals | C4: 10
B5: In Home modifications | C5: 10
B6: Caregiver Education & Support | C6: 5
B7: Transport to appointments | C7: 15
B8: Other | C8: 5
B14: Total PMPM Variable Costs | C14: =SUMPRODUCT(C4:C13,'5.Additional Utilizations'!N7:N16) -> 20
B18: 7a. Additional Benefits (Annual Based)
B19: Current Target Population | C19: ='3.Population Data'!E7 -> 400
B21: Benefit | C21: Total Annual | D21: PMPM
B22: Medicare/ACO Shared Savings | C22: 25000 | D22: =IFERROR(C22/C$19/12,0) -> 5.208333333
B23: CMS 30-Day Penalty Reduction | C23: 50000 | D23: =IFERROR(C23/C$19/12,0) -> 10.41666667
D24: 0
D25: 0
D26: 0
D27: 0
D28: 0
B29: Total Additional Benefits | C29: =SUM(C22:C28) -> 75000 | D29: =SUM(D22:D28) -> 15.625
B33: 7b. Additional Benefits (PMPM Based)
B36: Benefit | C36: PMPM | D36: Total Annual
B37: Revisions to HCC | C37: 8 | D37: =IFERROR(C37*C$19*12,0) -> 38400
B38: Stipend for PCC | C38: 6 | D38: =IFERROR(C38*C$19*12,0) -> 28800
B39: Fee for Care Coordination | C39: 3 | D39: 14400
D40: 0
D41: 0
D42: 0
D43: 0
B44: Total Additional Benefits | C44: =SUM(C37:C43) -> 17 | D44: =SUM(D37:D43) -> 81600

Sheet 8a.Summary
B1: 8a. Summary Results
B2: Eligible Population | C2: ='3.Population Data'!B1 -> 2000
C3: Level 1 | D3: =IF('3.Population Data'!K5,'3.Population Data'!F5,'3.Population Data'!E5) -> 200 | E3: =IF('3.Population Data'!K5,'3.Population Data'!L5,'3.Population Data'!D5) -> 0 to 10%
C4: Level 2 | D4: =IF('3.Population Data'!K5,0,'3.Population Data'!E6) -> 200 | E4: =IF('3.Population Data'!K5,"",'3.Population Data'!D6) -> 10% to 20%
C5: Total | D5: =D3+D4 -> 400
B7: Launch Costs | D7: ='4.Costs'!C19 -> 140000 | E7: One Time
C8: PMPM | D8: All Members per Month
B9: Operating Costs | C9: ='4.Costs'!E44 -> 148.3854167 | D9: ='4.Costs'!E44*D5 -> 59354.16667
B11: Direct Services | C11: ='4.Costs'!C59 -> 91 | D11: =C11*D$5 -> 36400
B12: Overhead | C12: ='4.Costs'!D60 -> 9.1 | D12: =C12*D$5 -> 3640
J13: =0.8*'6.Medical Utilization'!F7 -> 0
B14: Additional Services | C14: ='5.Additional Utilizations'!G19 -> 50.625 | D14: 20250
C15: =SUM(C11:C14) -> 150.725 | D15: =SUM(D11:D14) -> 60290
B17: Total Operating Costs | C17: =C9+SUM(C11:C14) -> 299.1104167 | E17: =D15+D9 -> 119644.1667
B19: Benefit Savings | C19: PMPM | D19: All Members per Month
B20: Level 1 | C20: ='6.Medical Utilization'!D42 -> 1401.617656 | D20: =C20*D3 -> 280323.5312
B21: Level 2 | C21: =IF('3.Population Data'!K5,0,'6.Medical Utilization'!E42) -> 361.7777279 | D21: =C21*D4 -> 72355.54557
B23: Additional Benefits | C23: ='7.Revenue Enhancements'!D29+'7.Revenue Enhancements'!C44 -> 32.625 | D23: =C23*D5 -> 13050
B25: Total Monthly Benefits | C25: =IFERROR(E25/D5,0) -> 914.3226921 | E25: =D20+D21+D23 -> 365729.0768
B27: Net Benefit PMPM | C27: =IFERROR(E28/D5,0) -> 615.2122754
B28: Total Net Benefit Per Month | E28: =E25-E17 -> 246084.9102
B30: ROI | E30: =IFERROR(E28/E17, 0) -> 2.056806588
B31: Startup Payback (months) | E31: =IFERROR(D7/E28,0) -> 0.5689093245
B34: Find the change in Hospital Admissions required to yield the ROI Goal
C36: ROI Goal: | D36: 1.5
C37: Hospital Admissions Event Change: | D37: -0.1096940668
B38: =IF(GOALADMITREDUX>0,"ROI can be achieved with an Increase in Admission Events!","") -> 
A41: Find the PMPM Costs needed to achieve ROI goal:
C42: ROI Goal: | D42: 1.5
C43: Annual Operating Costs: | D43: =+E25/(1+D42) -> 146291.6307
C44: PMPM: | D44: =+D43/'3.Population Data'!E7 -> 365.7290768

Sheet 8b.Scenario Comparison
B1: 8b. Scenario Results Comparison
B2: Scenario A | I2: Scenario B | P2: Delta (Scenario B-Scenario A)
B3: =IF(ISBLANK('Scen Meta'!C8),"",'Scen Meta'!C8) -> Baseline | D3: =IF(ISBLANK('Scen Meta'!D8),"",'Scen Meta'!D8) -> 2016-11-14T13:05:59 | I3: =IF(ISBLANK('Scen Meta'!C9),"",'Scen Meta'!C9) -> Restricted | K3: =IF(ISBLANK('Scen Meta'!D9),"",'Scen Meta'!D9) -> 2016-11-14T13:06:30
B5: Eligible Population | C5: =INDIRECT("scenarios!" & "D" &'Scen Meta'!$B$8) -> 2000 | I5: Eligible Population | J5: =INDIRECT("scenarios!" & "D" &'Scen Meta'!$B$9) -> 2000 | P5: Eligible Population | Q5: =J5-C5 -> 0
C6: Level 1 | D6: =INDIRECT("scenarios!" & "e" &'Scen Meta'!$B$8)*C5 -> 200 | E6: =INDIRECT("scenarios!" & "nx" &'Scen Meta'!$B$8) -> 0 to 10% | J6: Level 1 | K6: =INDIRECT("scenarios!" & "e" &'Scen Meta'!$B$9)*J5 -> 100 | L6: =INDIRECT("scenarios!" & "nx" &'Scen Meta'!$B$9) -> 0 to 5% | Q6: Level 1 | R6: =K6-D6 -> -100
C7: Level 2 | D7: =IF(INDIRECT("scenarios!" & "nn" &'Scen Meta'!$B$8)=TRUE,0,INDIRECT("scenarios!" & "f" &'Scen Meta'!$B$8)*C5-D6) -> 200 | E7: =INDIRECT("scenarios!" & "ny" &'Scen Meta'!$B$8) -> 10% to 20% | J7: Level 2 | K7: =IF(INDIRECT("scenarios!" & "oa" &'Scen Meta'!$B$9)=TRUE,0,INDIRECT("scenarios!" & "f" &'Scen Meta'!$B$9)*J5-K6) -> 100 | L7: =INDIRECT("scenarios!" & "ny" &'Scen Meta'!$B$9) -> 5% to 10% | Q7: Level 2 | R7: =K7-D7 -> -100
C8: Total | D8: =D6+D7 -> 400 | J8: Total | K8: =K6+K7 -> 200 | Q8: Total | R8: =K8-D8 -> -200
B10: Launch Costs | D10: =INDIRECT("scenarios!" & "my" &'Scen Meta'!$B$8) -> 140000 | E10: One Time | I10: Launch Costs | K10: =INDIRECT("scenarios!" & "my" &'Scen Meta'!$B$9) -> 140000 | L10: One Time | P10: Launch Costs | R10: =K10-D10 -> 0 | S10: One Time
C11: PMPM | D11: Monthly | J11: PMPM | K11: Monthly | Q11: PMPM | R11: Monthly
B12: Operating Costs | C12: =INDIRECT("scenarios!" & "mz" &'Scen Meta'!$B$8) -> 148.3854 | D12: =INDIRECT("scenarios!" & "na" &'Scen Meta'!$B$8) -> 59354.1667 | I12: Operating Costs | J12: =INDIRECT("scenarios!" & "mz" &'Scen Meta'!$B$9) -> 296.7708 | K12: =INDIRECT("scenarios!" & "na" &'Scen Meta'!$B$9) -> 59354.1667 | P12: Operating Costs | Q12: =J12-C12 -> 148.3854 | R12: =K12-D12 -> 0
B14: Direct Services | C14: =INDIRECT("scenarios!" & "nb" &'Scen Meta'!$B$8) -> 91 | D14: =INDIRECT("scenarios!" & "nc" &'Scen Meta'!$B$8) -> 36400 | I14: Direct Services | J14: =INDIRECT("scenarios!" & "nb" &'Scen Meta'!$B$9) -> 91 | K14: =INDIRECT("scenarios!" & "nc" &'Scen Meta'!$B$9) -> 18200 | P14: Direct Services | Q14: =J14-C14 -> 0 | R14: =K14-D14 -> -18200
B15: Overhead | C15: =INDIRECT("scenarios!" & "nd" &'Scen Meta'!$B$8) -> 9.1 | D15: =INDIRECT("scenarios!" & "ne" &'Scen Meta'!$B$8) -> 3640 | I15: Overhead | J15: =INDIRECT("scenarios!" & "nd" &'Scen Meta'!$B$9) -> 9.1 | K15: =INDIRECT("scenarios!" & "ne" &'Scen Meta'!$B$9) -> 1820 | P15: Overhead | Q15: =J15-C15 -> 0 | R15: =K15-D15 -> -1820
B17: Additional Services | C17: =INDIRECT("scenarios!" & "nf" &'Scen Meta'!$B$8) -> 50.625 | D17: =INDIRECT("scenarios!" & "ng" &'Scen Meta'!$B$8) -> 20250 | I17: Additional Services | J17: =INDIRECT("scenarios!" & "nf" &'Scen Meta'!$B$9) -> 50.625 | K17: =INDIRECT("scenarios!" & "ng" &'Scen Meta'!$B$9) -> 10125 | P17: Additional Services | Q17: =J17-C17 -> 0 | R17: =K17-D17 -> -10125
C18: =SUM(C14:C17) -> 150.725 | D18: =SUM(D14:D17) -> 60290 | J18: =SUM(J14:J17) -> 150.725 | K18: =SUM(K14:K17) -> 30145 | Q18: =SUM(Q14:Q17) -> 0 | R18: =SUM(R14:R17) -> -30145
B20: Total Operating Costs | C20: =C12+SUM(C14:C17) -> 299.1104 | E20: =D18+D12 -> 119644.1667 | I20: Total Operating Costs | J20: =J12+SUM(J14:J17) -> 447.4958 | L20: =K18+K12 -> 89499.1667 | P20: Total Operating Costs | Q20: =Q12+SUM(Q14:Q17) -> 148.3854 | S20: =R18+R12 -> -30145
B22: Benefit Savings | C22: PMPM | D22: Monthly | I22: Benefit Savings | J22: PMPM | K22: Monthly | P22: Benefit Savings | Q22: PMPM | R22: Monthly
B23: Level 1 | C23: =INDIRECT("scenarios!" & "nl" &'Scen Meta'!$B$8) -> 1401.6177 | D23: =INDIRECT("scenarios!" & "nm" &'Scen Meta'!$B$8) -> 280323.5312 | I23: Level 1 | J23: =INDIRECT("scenarios!" & "nl" &'Scen Meta'!$B$9) -> 1401.6177 | K23: =INDIRECT("scenarios!" & "nm" &'Scen Meta'!$B$9) -> 140161.7656 | P23: Level 1 | Q23: =J23-C23 -> 0 | R23: =K23-D23 -> -140161.7656
B24: Level 2 | C24: =INDIRECT("scenarios!" & "nn" &'Scen Meta'!$B$8) -> 361.7777 | D24: =INDIRECT("scenarios!" & "no" &'Scen Meta'!$B$8) -> 72355.5456 | I24: Level 2 | J24: =INDIRECT("scenarios!" & "nn" &'Scen Meta'!$B$9) -> 361.7777 | K24: =INDIRECT("scenarios!" & "no" &'Scen Meta'!$B$9) -> 36177.7728 | P24: Level 2 | Q24: =J24-C24 -> 0 | R24: =K24-D24 -> -36177.7728
B26: Additional Benefits | C26: =INDIRECT("scenarios!" & "np" &'Scen Meta'!$B$8) -> 32.625 | D26: =INDIRECT("scenarios!" & "nq" &'Scen Meta'!$B$8) -> 13050 | I26: Additional Benefits | J26: =INDIRECT("scenarios!" & "np" &'Scen Meta'!$B$9) -> 48.25 | K26: =INDIRECT("scenarios!" & "nq" &'Scen Meta'!$B$9) -> 9650 | P26: Additional Benefits | Q26: =J26-C26 -> 15.625 | R26: =K26-D26 -> -3400
B28: Total Monthly Benefits | C28: =IFERROR(E28/D8,0) -> 914.322692 | E28: =D23+D24+D26 -> 365729.0768 | I28: Total Monthly Benefits | J28: =IFERROR(L28/K8,0) -> 929.947692 | L28: =K23+K24+K26 -> 185989.5384 | P28: Total Monthly Benefits | Q28: 0 | S28: =L28-E28 -> -179739.5384
B30: Net Benefit PMPM | C30: =IFERROR(E31/D8,0) -> 615.2122753 | I30: Net Benefit PMPM | J30: =IFERROR(L31/K8,0) -> 482.4518585 | P30: Net Benefit PMPM | Q30: 0
B31: Total Net Benefit Per Month | E31: =E28-E20 -> 246084.9101 | I31: Total Net Benefit Per Month | L31: =L28-L20 -> 96490.3717 | P31: Total Net Benefit Per Month | S31: =L31-E31 -> -149594.5384
B33: Operating Margin ROI | E33: =IFERROR(E31/E20,0) -> 2.056806586 | I33: Operating Margin ROI | L33: =IFERROR(L31/L20,0) -> 1.07811475 | P33: Operating Margin ROI | S33: =L33-RETURNONINV -> -0.9786918368
B34: Startup Payback (months) | E34: =IFERROR(D10/E31,0) -> 0.5689093246 | I34: Startup Payback (months) | L34: =IFERROR(K10/L31,0) -> 1.450921968 | P34: Startup Payback (months) | S34: =L34-PBMONTH -> 0.8820126434

Sheet 9a.Monte Carlo Analysis
B1: 9a. Monte Carlo Data | E1: Plausible Range of Values
B2: Variable | D2: Current Value | E2: Conservative (lowers ROI) | F2: Intermediate | G2: Aggressive (raises ROI) | H2: Average
B3: Launch Costs | D3: ='4.Costs'!C19 -> 140000 | E3: 0 | F3: 0 | G3: 0 | H3: =AVERAGE(E3:G3) -> 0
B5: =IF(ISBLANK('6.Medical Utilization'!B18),"",'6.Medical Utilization'!B18) -> Hospital Admissions | C5: Level 1 | D5: ='6.Medical Utilization'!C18 -> 1.33 | E5: 1.064 | F5: 1.33 | G5: 1.596000063 | H5: =SUM(E5:G5)/3 -> 1.330000021 | N5: 1 | Q5: HA Complete | R5: =IF('6.Medical Utilization'!I18<>0,1,0) -> 1
C6: Level 2 | D6: ='6.Medical Utilization'!D18 -> 0.665 | E6: 0.532 | F6: 0.665 | G6: 0.7980000317 | H6: =SUM(E6:G6)/3 -> 0.6650000106 | N6: 1
N7: 0
B8: =IF('6.Medical Utilization'!B19="","",'6.Medical Utilization'!B19) -> Hospital Readmissions | C8: Level 1 | D8: ='6.Medical Utilization'!C19 -> 0.17 | E8: 0.136 | F8: 0.17 | G8: 0.2040000081 | H8: =SUM(E8:G8)/3 -> 0.1700000027 | N8: 1 | Q8: HR Complete | R8: =IF('6.Medical Utilization'!I19<>0,1,0) -> 1
C9: Level 2 | D9: ='6.Medical Utilization'!D19 -> 0.085 | E9: 0.068 | F9: 0.085 | G9: 0.1020000041 | H9: =SUM(E9:G9)/3 -> 0.08500000135 | K9: Conservative | L9: -0.2 | N9: 1
K10: Current | L10: 0 | N10: 0
B11: =IF(ISBLANK('6.Medical Utilization'!B6),"",'6.Medical Utilization'!B6) -> Emergency Dept. | C11: Level 1 | D11: ='6.Medical Utilization'!D6 -> 1890 | E11: 1512 | F11: 1890 | G11: 2268.00009 | H11: =SUM(E11:G11)/3 -> 1890.00003 | K11: Aggressive | L11: 0.2 | N11: 1 | Q11: ED Complete | R11: =IF('6.Medical Utilization'!D6<>0,1,0) -> 1
C12: Level 2 | D12: ='6.Medical Utilization'!E6 -> 945 | E12: 756 | F12: 945 | G12: 1134.000045 | H12: =SUM(E12:G12)/3 -> 945.000015 | N12: 1
N13: 0
B14: ="Baseline Cost of "& '6.Medical Utilization'!B18 -> Baseline Cost of Hospital Admissions | C14: Level1 | D14: ='6.Medical Utilization'!C32 -> 3500 | E14: 2800 | F14: 3500 | G14: 4200.000167 | H14: =SUM(E14:G14)/3 -> 3500.000056 | N14: 1
C15: Level2 | D15: ='6.Medical Utilization'!D32 -> 2625 | E15: 2100 | F15: 2625 | G15: 3150.000125 | H15: =SUM(E15:G15)/3 -> 2625.000042 | N15: 1
N16: 0
B17: =IF('6.Medical Utilization'!B19="","","Baseline Cost of " & '6.Medical Utilization'!B19) -> Baseline Cost of Hospital Readmissions | C17: Level1 | D17: ='6.Medical Utilization'!C33 -> 3500 | E17: 2800 | F17: 3500 | G17: 4200.000167 | H17: 3500.000056 | N17: 1
C18: Level2 | D18: ='6.Medical Utilization'!D33 -> 2625 | E18: 2100 | F18: 2625 | G18: 3150.000125 | H18: 2625.000042 | N18: 1
N19: 0
B20: ="Costs per " & '6.Medical Utilization'!B6 -> Costs per Emergency Dept. | D20: ='6.Medical Utilization'!F6 -> 2800 | E20: 2240 | F20: 2800 | G20: 3360.000134 | H20: =SUM(E20:G20)/3 -> 2800.000045 | N20: 1
N21: 0
B22: ="Percentage Change in " &'6.Medical Utilization'!B5 -> Percentage Change in Specialty Care | D22: ='6.Medical Utilization'!P5 -> -0.1 | E22: -0.08 | F22: -0.1 | G22: -0.1200000048 | H22: =SUM(E22:G22)/3 -> -0.1000000016 | N22: 1 | R22: =IF('6.Medical Utilization'!I5<>0,1,0) -> 1
N23: 0
B24: ="Percentage Change in " &'6.Medical Utilization'!B6 -> Percentage Change in Emergency Dept. | D24: ='6.Medical Utilization'!P6 -> -0.35 | E24: -0.28 | F24: -0.35 | G24: -0.4200000167 | H24: =SUM(E24:G24)/3 -> -0.3500000056 | N24: 1
N25: 0
B26: ="Percentage Change in " &'6.Medical Utilization'!B18 -> Percentage Change in Hospital Admissions | D26: ='6.Medical Utilization'!P18 -> -0.25 | E26: -0.2 | F26: -0.25 | G26: -0.3000000119 | H26: =SUM(E26:G26)/3 -> -0.250000004 | N26: 1
N27: 0
B28: ="Percentage Change in " &'6.Medical Utilization'!B19 -> Percentage Change in Hospital Readmissions | D28: ='6.Medical Utilization'!P19 -> -0.25 | E28: -0.2 | F28: -0.25 | G28: -0.3000000119 | H28: =SUM(E28:G28)/3 -> -0.250000004 | N28: 1
Q29: MC Error | R29: =+R22+R11+R8+R5 -> 4
Q30: Costs
B31: Number of Simulations (MAX 10,000) | C31: 500 | Q31: Fixed | R31: ='4.Costs'!E43 -> 712250
Q32: Var | R32: ='4.Costs'!D61 -> 100.1
Q33: Add | R33: ='5.Additional Utilizations'!G19 -> 50.625
G34: Average Net Benefit PMPM | H34: =IFERROR(AVERAGE(MCCALCS!T27:T10026),"Insufficient Data") -> 612.320658 | Q34: Error | R34: =SUM(R31:R33) -> 712400.725
G35: Average ROI | H35: =IFERROR(AVERAGE(MCCALCS!U27:U10026),"Insufficient Data") -> 2.047139169
C36: A Run may take several minutes. See the scenario count in the lower left. | Q36: Error Flag | R36: =IF(OR(R34=0,R29=0),1,0) -> 0
D39: Net Benefit PMPM
E40: Percent Less than | G40: 2715.2379 | H40: =IFERROR(MCCALCS!W5,"") -> 1.030927835
E41: Percent Greater than | G41: 3318.6241 | H41: =IFERROR(MCCALCS!W6,"") -> 0
E42: Percent Between | H42: =IFERROR(MCCALCS!W7,"") -> -0.03092783505
D43: ROI
E44: Percent Less than | G44: 2.431556288 | H44: =IFERROR(MCCALCS!W2,"") -> 0.93
E45: Percent Greater than | G45: 2.97190213 | H45: =IFERROR(MCCALCS!W3,"") -> 0
E46: Percent Between | H46: =IFERROR(MCCALCS!W4,"") -> 0.07

Sheet Sheet6 (hidden)
A2: -12 | B2: =IF(-A2<'4.Costs'!#REF!,-'4.Costs'!$C$19/'4.Costs'!#REF!,"") ->  | D2: =(1+IRR(B2:B74,0.1))^12-1 -> 
A3: -11 | B3: =IF(-A3<'4.Costs'!#REF!,-'4.Costs'!$C$19/'4.Costs'!#REF!,"") -> 
A4: -10 | B4: =IF(-A4<'4.Costs'!#REF!,-'4.Costs'!$C$19/'4.Costs'!#REF!,"") -> 
A5: -9 | B5: =IF(-A5<'4.Costs'!#REF!,-'4.Costs'!$C$19/'4.Costs'!#REF!,"") -> 
A6: -8 | B6: =IF(-A6<'4.Costs'!#REF!,-'4.Costs'!$C$19/'4.Costs'!#REF!,"") -> 
A7: -7 | B7: =IF(-A7<'4.Costs'!#REF!,-'4.Costs'!$C$19/'4.Costs'!#REF!,"") -> 
A8: -6 | B8: =IF(-A8<'4.Costs'!#REF!,-'4.Costs'!$C$19/'4.Costs'!#REF!,"") -> 
A9: -5 | B9: =IF(-A9<'4.Costs'!#REF!,-'4.Costs'!$C$19/'4.Costs'!#REF!,"") -> 
A10: -4 | B10: =IF(-A10<'4.Costs'!#REF!,-'4.Costs'!$C$19/'4.Costs'!#REF!,"") -> 
A11: -3 | B11: =IF(-A11<'4.Costs'!#REF!,-'4.Costs'!$C$19/'4.Costs'!#REF!,"") -> 
A12: -2 | B12: =IF(-A12<'4.Costs'!#REF!,-'4.Costs'!$C$19/'4.Costs'!#REF!,"") -> 
A13: -1 | B13: =IF(-A13<'4.Costs'!#REF!,-'4.Costs'!$C$19/'4.Costs'!#REF!,"") -> 
A14: 0 | B14: =IF(-A14<'4.Costs'!#REF!,-'4.Costs'!$C$19/'4.Costs'!#REF!,"") -> 
A15: 1 | B15: ='8a.Summary'!E$28 -> 246084.9102
A16: 2 | B16: ='8a.Summary'!E$28 -> 246084.9102
A17: 3 | B17: ='8a.Summary'!E$28 -> 246084.9102
A18: 4 | B18: ='8a.Summary'!E$28 -> 246084.9102
A19: 5 | B19: ='8a.Summary'!E$28 -> 246084.9102
A20: 6 | B20: ='8a.Summary'!E$28 -> 246084.9102
A21: 7 | B21: ='8a.Summary'!E$28 -> 246084.9102
A22: 8 | B22: ='8a.Summary'!E$28 -> 246084.9102
A23: 9 | B23: ='8a.Summary'!E$28 -> 246084.9102
A24: 10 | B24: ='8a.Summary'!E$28 -> 246084.9102
A25: 11 | B25: ='8a.Summary'!E$28 -> 246084.9102
A26: 12 | B26: ='8a.Summary'!E$28 -> 246084.9102
A27: 13 | B27: ='8a.Summary'!E$28 -> 246084.9102
A28: 14 | B28: ='8a.Summary'!E$28 -> 246084.9102
A29: 15 | B29: ='8a.Summary'!E$28 -> 246084.9102
A30: 16 | B30: ='8a.Summary'!E$28 -> 246084.9102
A31: 17 | B31: ='8a.Summary'!E$28 -> 246084.9102
A32: 18 | B32: ='8a.Summary'!E$28 -> 246084.9102
A33: 19 | B33: ='8a.Summary'!E$28 -> 246084.9102
A34: 20 | B34: ='8a.Summary'!E$28 -> 246084.9102
A35: 21 | B35: ='8a.Summary'!E$28 -> 246084.9102
A36: 22 | B36: ='8a.Summary'!E$28 -> 246084.9102
A37: 23 | B37: ='8a.Summary'!E$28 -> 246084.9102
A38: 24 | B38: ='8a.Summary'!E$28 -> 246084.9102
A39: 25 | B39: ='8a.Summary'!E$28 -> 246084.9102
A40: 26 | B40: ='8a.Summary'!E$28 -> 246084.9102
A41: 27 | B41: ='8a.Summary'!E$28 -> 246084.9102
A42: 28 | B42: ='8a.Summary'!E$28 -> 246084.9102
A43: 29 | B43: ='8a.Summary'!E$28 -> 246084.9102
A44: 30 | B44: ='8a.Summary'!E$28 -> 246084.9102
A45: 31 | B45: ='8a.Summary'!E$28 -> 246084.9102
A46: 32 | B46: ='8a.Summary'!E$28 -> 246084.9102
A47: 33 | B47: ='8a.Summary'!E$28 -> 246084.9102
A48: 34 | B48: ='8a.Summary'!E$28 -> 246084.9102
A49: 35 | B49: ='8a.Summary'!E$28 -> 246084.9102
A50: 36 | B50: ='8a.Summary'!E$28 -> 246084.9102
A51: 37 | B51: ='8a.Summary'!E$28 -> 246084.9102
A52: 38 | B52: ='8a.Summary'!E$28 -> 246084.9102
A53: 39 | B53: ='8a.Summary'!E$28 -> 246084.9102
A54: 40 | B54: ='8a.Summary'!E$28 -> 246084.9102
A55: 41 | B55: ='8a.Summary'!E$28 -> 246084.9102
A56: 42 | B56: ='8a.Summary'!E$28 -> 246084.9102
A57: 43 | B57: ='8a.Summary'!E$28 -> 246084.9102
A58: 44 | B58: ='8a.Summary'!E$28 -> 246084.9102
A59: 45 | B59: ='8a.Summary'!E$28 -> 246084.9102
A60: 46 | B60: ='8a.Summary'!E$28 -> 246084.9102
A61: 47 | B61: ='8a.Summary'!E$28 -> 246084.9102
A62: 48 | B62: ='8a.Summary'!E$28 -> 246084.9102
A63: 49 | B63: ='8a.Summary'!E$28 -> 246084.9102
A64: 50 | B64: ='8a.Summary'!E$28 -> 246084.9102
A65: 51 | B65: ='8a.Summary'!E$28 -> 246084.9102
A66: 52 | B66: ='8a.Summary'!E$28 -> 246084.9102
A67: 53 | B67: ='8a.Summary'!E$28 -> 246084.9102
A68: 54 | B68: ='8a.Summary'!E$28 -> 246084.9102
A69: 55 | B69: ='8a.Summary'!E$28 -> 246084.9102
A70: 56 | B70: ='8a.Summary'!E$28 -> 246084.9102
A71: 57 | B71: ='8a.Summary'!E$28 -> 246084.9102
A72: 58 | B72: ='8a.Summary'!E$28 -> 246084.9102
A73: 59 | B73: ='8a.Summary'!E$28 -> 246084.9102
A74: 60 | B74: ='8a.Summary'!E$28 -> 246084.9102

Sheet 9d.Sensitivity Analysis
B1: 9d. Sensitivity Analysis
C3: Variable | D3: Level | E3: Current Value | F3: Net Benefit Elasticity
B4: Visit Rate
C5: ='9a.Monte Carlo Analysis'!B5 -> Hospital Admissions | D5: 1 | E5: ='9a.Monte Carlo Analysis'!D5 -> 1.33 | F5: =SACALCS!R3 -> 0.8734952146
D6: 2 | E6: ='9a.Monte Carlo Analysis'!D6 -> 0.665 | F6: =SACALCS!R4 -> 0.2015726929
C7: ='9a.Monte Carlo Analysis'!B8 -> Hospital Readmissions | D7: 1 | E7: ='9a.Monte Carlo Analysis'!D8 -> 0.17 | F7: =SACALCS!R5 -> 0.1030619836
D8: 2 | E8: ='9a.Monte Carlo Analysis'!D9 -> 0.085 | F8: =SACALCS!R6 -> 0.0225450629
C9: ='9a.Monte Carlo Analysis'!B11 -> Emergency Dept. | D9: 1 | E9: ='9a.Monte Carlo Analysis'!D11 -> 1890 | F9: =SACALCS!R7 -> 0.125444501
D10: 2 | E10: ='9a.Monte Carlo Analysis'!D12 -> 945 | F10: =SACALCS!R8 -> 0.06272631415
B11: Costs
C12: ='9a.Monte Carlo Analysis'!B14 -> Baseline Cost of Hospital Admissions | D12: 1 | E12: ='9a.Monte Carlo Analysis'!D14 -> 3500 | F12: =SACALCS!R9 -> 0.8734952146
D13: 2 | E13: ='9a.Monte Carlo Analysis'!D15 -> 2625 | F13: =SACALCS!R10 -> 0.2015726929
C14: ='9a.Monte Carlo Analysis'!B17 -> Baseline Cost of Hospital Readmissions | D14: 1 | E14: ='9a.Monte Carlo Analysis'!D17 -> 3500 | F14: =SACALCS!R11 -> 0.1030619836
D15: 2 | E15: ='9a.Monte Carlo Analysis'!D18 -> 2625 | F15: =SACALCS!R12 -> 0.0225450629
C16: ='9a.Monte Carlo Analysis'!B20 -> Costs per Emergency Dept. | E16: ='9a.Monte Carlo Analysis'!D20 -> 2800 | F16: =SACALCS!R13 -> 0.1881626879
C17: Total Operating Costs | E17: ='8a.Summary'!E17 -> 119644.1667 | F17: =+SACALCS!R14 -> 0.4861898892
B18: Reduction Rate of Visits
C19: ='9a.Monte Carlo Analysis'!B22 -> Percentage Change in Specialty Care | E19: ='9a.Monte Carlo Analysis'!D22 -> -0.1 | F19: =SACALCS!R15 -> 0.008127275739
C20: ='9a.Monte Carlo Analysis'!B24 -> Percentage Change in Emergency Dept. | E20: ='9a.Monte Carlo Analysis'!D24 -> -0.35 | F20: =SACALCS!R16 -> 0.1344088862
C21: ='9a.Monte Carlo Analysis'!B26 -> Percentage Change in Hospital Admissions | E21: ='9a.Monte Carlo Analysis'!D26 -> -0.25 | F21: =SACALCS!R17 -> 0.6753115957
C22: ='9a.Monte Carlo Analysis'!B28 -> Percentage Change in Hospital Readmissions | E22: ='9a.Monte Carlo Analysis'!D28 -> -0.25 | F22: =SACALCS!R18 -> 0.07889959287

Sheet Scenarios (hidden)
A1: # | B1: Scenario Name | C1: Date | D1: Members | E1: L1_Pct | F1: L2_Pct | G1: Test Group | H1: LCostsItem1 | I1: LCostsItem2 | J1: LCostsItem3 | K1: LCostsItem4 | L1: LCostsItem5 | M1: LCostsItem6 | N1: LCostsItem7 | O1: LCostsItem8 | P1: LCostsItem9 | Q1: LCostsItem10 | R1: LCostsItem11 | S1: LCostsItem12 | T1: LCostsItem13 | U1: LCostsItem14 | V1: LCostsItem15 | W1: LCosts1 | X1: LCosts2 | Y1: LCosts3 | Z1: LCosts4 | AA1: LCosts5 | AB1: LCosts6 | AC1: LCosts7 | AD1: LCosts8 | AE1: LCosts9 | AF1: LCosts10 | AG1: LCosts11 | AH1: LCosts12 | AI1: LCosts13 | AJ1: LCosts14 | AK1: LCosts15 | AL1: OCostsPos1 | AM1: OCostsPos2 | AN1: OCostsPos3 | AO1: OCostsPos4 | AP1: OCostsPos5 | AQ1: OCostsPos6 | AR1: OCostsPos7 | AS1: OCostsPos8 | AT1: OCostsPos9 | AU1: OCostsPos10 | AV1: OCostsPos11 | AW1: OCostsPos12 | AX1: OCostsPos13 | AY1: OCostsPos14 | AZ1: OCostsPos15 | BA1: OCostsFTE1 | BB1: OCostsFTE2 | BC1: OCostsFTE3 | BD1: OCostsFTE4 | BE1: OCostsFTE5 | BF1: OCostsFTE6 | BG1: OCostsFTE7 | BH1: OCostsFTE8 | BI1: OCostsFTE9 | BJ1: OCostsFTE10 | BK1: OCostsFTE11 | BL1: OCostsFTE12 | BM1: OCostsFTE13 | BN1: OCostsFTE14 | BO1: OCostsFTE15 | BP1: OCostsANNFTE1 | BQ1: OCostsANNFTE2 | BR1: OCostsANNFTE3 | BS1: OCostsANNFTE4 | BT1: OCostsANNFTE5 | BU1: OCostsANNFTE6 | BV1: OCostsANNFTE7 | BW1: OCostsANNFTE8 | BX1: OCostsANNFTE9 | BY1: OCostsANNFTE10 | BZ1: OCostsANNFTE11 | CA1: OCostsANNFTE12 | CB1: OCostsANNFTE13 | CC1: OCostsANNFTE14 | CD1: OCostsANNFTE15 | CE1: OCOSTSOH | CF1: VarCostItem1 | CG1: VarCostItem2 | CH1: VarCostItem3 | CI1: VarCostItem4 | CJ1: VarCostItem5 | CK1: VarCostItem6 | CL1: VarCostItem7 | CM1: VarCostItem8 | CN1: VarCostItem9 | CO1: VarCostItem10 | CP1: VarCostsPMPM1 | CQ1: VarCostsPMPM2 | CR1: VarCostsPMPM3 | CS1: VarCostsPMPM4 | CT1: VarCostsPMPM5 | CU1: VarCostsPMPM6 | CV1: VarCostsPMPM7 | CW1: VarCostsPMPM8 | CX1: VarCostsPMPM9 | CY1: VarCostsPMPM10 | CZ1: VarCostsOH | DA1: AddUtEX1 | DB1: AddUtEX2 | DC1: AddUtEX3 | DD1: AddUtEX4 | DE1: AddUtEX5 | DF1: AddUtEX6 | DG1: AddUtEX7 | DH1: AddUtEX8 | DI1: AddUtEX9 | DJ1: AddUtEX10 | DK1: AddUtEX11 | DL1: AddUtEX12 | DM1: AddUtEX13 | DN1: AddUtEX14 | DO1: AddUtServ1 | DP1: AddUtServ2 | DQ1: AddUtServ3 | DR1: AddUtServ4 | DS1: AddUtServ5 | DT1: AddUtServ6 | DU1: AddUtServ7 | DV1: AddUtServ8 | DW1: AddUtServ9 | DX1: AddUtServ10 | DY1: AddUtServ11 | DZ1: AddUtServ12 | EA1: AddUtServ13 | EB1: AddUtServ14 | EC1: AddUtMetric1 | ED1: AddUtMetric2 | EE1: AddUtMetric3 | EF1: AddUtMetric4 | EG1: AddUtMetric5 | EH1: AddUtMetric6 | EI1: AddUtMetric7 | EJ1: AddUtMetric8 | EK1: AddUtMetric9 | EL1: AddUtMetric10 | EM1: AddUtMetric11 | EN1: AddUtMetric12 | EO1: AddUtMetric13 | EP1: AddUtMetric14 | EQ1: AddUtCostper1 | ER1: AddUtCostper2 | ES1: AddUtCostper3 | ET1: AddUtCostper4 | EU1: AddUtCostper5 | EV1: AddUtCostper6 | EW1: AddUtCostper7 | EX1: AddUtCostper8 | EY1: AddUtCostper9 | EZ1: AddUtCostper10 | FA1: AddUtCostper11 | FB1: AddUtCostper12 | FC1: AddUtCostper13 | FD1: AddUtCostper14 | FE1: AddUtPMPM1 | FF1: AddUtPMPM2 | FG1: AddUtPMPM3 | FH1: AddUtPMPM4 | FI1: AddUtPMPM5 | FJ1: AddUtPMPM6 | FK1: AddUtPMPM7 | FL1: AddUtPMPM8 | FM1: AddUtPMPM9 | FN1: AddUtPMPM10 | FO1: AddUtPMPM11 | FP1: AddUtPMPM12 | FQ1: AddUtPMPM13 | FR1: AddUtPMPM14 | FS1: AddUtPctMem1 | FT1: AddUtPctMem2 | FU1: AddUtPctMem3 | FV1: AddUtPctMem4 | FW1: AddUtPctMem5 | FX1: AddUtPctMem6 | FY1: AddUtPctMem7 | FZ1: AddUtPctMem8 | GA1: AddUtPctMem9 | GB1: AddUtPctMem10 | GC1: AddUtPctMem11 | GD1: AddUtPctMem12 | GE1: AddUtPctMem13 | GF1: AddUtPctMem14 | GG1: MUEX1 | GH1: MUEX2 | GI1: MUEX3 | GJ1: MUEX4 | GK1: MUEX5 | GL1: MUEX6 | GM1: MUEX7 | GN1: MUEX8 | GO1: MUEX9 | GP1: MUEvent1 | GQ1: MUEvent2 | GR1: MUEvent3 | GS1: MUEvent4 | GT1: MUEvent5 | GU1: MUEvent6 | GV1: MUEvent7 | GW1: MUEvent8 | GX1: MUEvent9 | GY1: MUMetric1 | GZ1: MUMetric2 | HA1: MUMetric3 | HB1: MUMetric4 | HC1: MUMetric5 | HD1: MUMetric6 | HE1: MUMetric7 | HF1: MUMetric8 | HG1: MUMetric9 | HH1: MUBase_L1_1 | HI1: MUBase_L1_2 | HJ1: MUBase_L1_3 | HK1: MUBase_L1_4 | HL1: MUBase_L1_5 | HM1: MUBase_L1_6 | HN1: MUBase_L1_7 | HO1: MUBase_L1_8 | HP1: MUBase_L1_9 | HQ1: MUBase_L2_1 | HR1: MUBase_L2_2 | HS1: MUBase_L2_3 | HT1: MUBase_L2_4 | HU1: MUBase_L2_5 | HV1: MUBase_L2_6 | HW1: MUBase_L2_7 | HX1: MUBase_L2_8 | HY1: MUBase_L2_9 | HZ1: MUCpost_1 | IA1: MUCpost_2 | IB1: MUCpost_3 | IC1: MUCpost_4 | ID1: MUCpost_5 | IE1: MUCpost_6 | IF1: MUCpost_7 | IG1: MUCpost_8 | IH1: MUCpost_9 | II1: MUTime_1 | IJ1: MUTime_2 | IK1: MUTime_3 | IL1: MUTime_4 | IM1: MUTime_5 | IN1: MUTime_6 | IO1: MUTime_7 | IP1: MUTime_8 | IQ1: MUTime_9 | IR1: MUPatCount_1 | IS1: MUPatCount_2 | IT1: MUPatCount_3 | IU1: MUPatCount_4 | IV1: MUPatCount_5 | IW1: MUPatCount_6 | IX1: MUPatCount_7 | IY1: MUPatCount_8 | IZ1: MUPatCount_9 | JA1: MUChng_1 | JB1: MUChng_2 | JC1: MUChng_3 | JD1: MUChng_4 | JE1: MUChng_5 | JF1: MUChng_6 | JG1: MUChng_7 | JH1: MUChng_8 | JI1: MUChng_9 | JJ1: IPEx_1 | JK1: IPEx_2 | JL1: IPEx_3 | JM1: IPEx_4 | JN1: IPEx_5 | JO1: IPEvents_1 | JP1: IPEvents_2 | JQ1: IPEvents_3 | JR1: IPEvents_4 | JS1: IPEvents_5 | JT1: IPBase_L1_1 | JU1: IPBase_L1_2 | JV1: IPBase_L1_3 | JW1: IPBase_L1_4 | JX1: IPBase_L1_5 | JY1: IPBase_L2_1 | JZ1: IPBase_L2_2 | KA1: IPBase_L2_3 | KB1: IPBase_L2_4 | KC1: IPBase_L2_5 | KD1: IPTime_1 | KE1: IPTime_2 | KF1: IPTime_3 | KG1: IPTime_4 | KH1: IPTime_5 | KI1: IPPatCount_1 | KJ1: IPPatCount_2 | KK1: IPPatCount_3 | KL1: IPPatCount_4 | KM1: IPPatCount_5 | KN1: IPEventsChng_1 | KO1: IPEventsChng_2 | KP1: IPEventsChng_3 | KQ1: IPEventsChng_4 | KR1: IPEventsChng_5 | KS1: IPLOS_L1_1 | KT1: IPLOS_L1_2 | KU1: IPLOS_L1_3 | KV1: IPLOS_L1_4 | KW1: IPLOS_L1_5 | KX1: IPLOS_L2_1 | KY1: IPLOS_L2_2 | KZ1: IPLOS_L2_3 | LA1: IPLOS_L2_4 | LB1: IPLOS_L2_5 | LC1: IPLOS_Chng_1 | LD1: IPLOS_Chng_2 | LE1: IPLOS_Chng_3 | LF1: IPLOS_Chng_4 | LG1: IPLOS_Chng_5 | LH1: IPCost_L1_1 | LI1: IPCost_L1_2 | LJ1: IPCost_L1_3 | LK1: IPCost_L1_4 | LL1: IPCost_L1_5 | LM1: IPCosts_L2_1 | LN1: IPCosts_L2_2 | LO1: IPCosts_L2_3 | LP1: IPCosts_L2_4 | LQ1: IPCosts_L2_5 | LR1: IPCosts_Chng_1 | LS1: IPCosts_Chng_2 | LT1: IPCosts_Chng_3 | LU1: IPCosts_Chng_4 | LV1: IPCosts_Chng_5 | LW1: OF_Ben_ann_Item1 | LX1: OF_Ben_ann_Item2 | LY1: OF_Ben_ann_Item3 | LZ1: OF_Ben_ann_Item4 | MA1: OF_Ben_ann_Item5 | MB1: OF_Ben_ann_Item6 | MC1: OF_Ben_ann_Item7 | MD1: OF_Ben_ann_Amt1 | ME1: OF_Ben_ann_Amt2 | MF1: OF_Ben_ann_Amt3 | MG1: OF_Ben_ann_Amt4 | MH1: OF_Ben_ann_Amt5 | MI1: OF_Ben_ann_Amt6 | MJ1: OF_Ben_ann_Amt7 | MK1: OF_Ben_PMPM_Item1 | ML1: OF_Ben_PMPM_Item2 | MM1: OF_Ben_PMPM_Item3 | MN1: OF_Ben_PMPM_Item4 | MO1: OF_Ben_PMPM_Item5 | MP1: OF_Ben_PMPM_Item6 | MQ1: OF_Ben_PMPM_Item7 | MR1: OF_Ben_PMPM_Amt1 | MS1: OF_Ben_PMPM_Amt2 | MT1: OF_Ben_PMPM_Amt3 | MU1: OF_Ben_PMPM_Amt4 | MV1: OF_Ben_PMPM_Amt5 | MW1: OF_Ben_PMPM_Amt6 | MX1: OF_Ben_PMPM_Amt7 | MY1: R_Launch | MZ1: R_OC_PMPM | NA1: R_OC_Monthly | NB1: R_DS_PMPM | NC1: R_DS_Month | ND1: R_OH_PMPM | NE1: R_OH_Month | NF1: R_AS_PMPM | NG1: R_AS_Month | NH1: R_TOTNONOP_PMPM | NI1: R_TOTNONOP_Month | NJ1: R_TOT_OPCOST_PMPM | NK1: R_TOTOPCOSTS | NL1: R_SAV_L1_PMPM | NM1: R_SAV_L1_Monthly | NN1: R_SAV_L2_PMPM | NO1: R_SAV_L2_Monthly | NP1: R_AddBen_PMPM | NQ1: R_AddBen_Monthly | NR1: R_TOTBen_PMPM | NS1: R_TOTBen_Monthly | NT1: R_NetBen_PMPM | NU1: R_NetBen_Monthly | NV1: R_ROI | NW1: R_Payback | NX1: PopPct_L1 | NY1: PopPct_L2 | NZ1: BASELINE | OA1: Testgroup selected
A2: 1 | B2: Baseline | C2: 2016-11-14T13:05:59 | D2: 2000 | E2: 0.1 | F2: 0.2 | H2: Training | I2: Equipment | J2: Other | K2: Recruitment | L2: Remodel/Costruction | W2: 50000 | X2: 25000 | Y2: 25000 | Z2: 25000 | AA2: 15000 | AL2: Program Director | AM2: Medical Director | AN2: Nurse Practitioner | AO2: Social Worker | AP2: Medical Assistant | AQ2: Pharmacist | AR2: Mental Health Liaison | BA2: 1 | BB2: 0.5 | BC2: 2 | BD2: 2 | BE2: 1 | BF2: 0.5 | BG2: 0.1 | BP2: 150000 | BQ2: 200000 | BR2: 95000 | BS2: 42000 | BT2: 45000 | BU2: 120000 | BV2: 175000 | BW2: 1000 | CE2: 0.1 | CF2: Mileage | CG2: Supplies | CH2: Other | CI2: Misc | CP2: 36 | CQ2: 8 | CR2: 36 | CS2: 11 | CZ2: 0.1 | DA2: FALSE | DB2: FALSE | DC2: TRUE | DD2: TRUE | DE2: FALSE | DF2: FALSE | DG2: FALSE | DH2: FALSE | DI2: FALSE | DJ2: FALSE | DK2: FALSE | DL2: FALSE | DM2: FALSE | DN2: FALSE | DO2: Behavioral Health | DP2: Rehabilitation Services | DQ2: Home Delivered Meals | DR2: In-Home Modifications | DS2: Caregiver Education & Support | DT2: Transport to Appointments | EC2: Year | ED2: Month | EE2: Month | EF2: Year | EG2: Month | EH2: Month | EQ2: 125 | ER2: 85 | ES2: 10 | ET2: 1000 | EU2: 25 | EV2: 25 | FE2: 2 | FF2: 1 | FG2: 6 | FH2: 1 | FI2: 1 | FJ2: 1 | FS2: 0.45 | FT2: 0.25 | FU2: 0.1 | FV2: 0.6 | FW2: 0.5 | FX2: 0.3 | GG2: FALSE | GH2: FALSE | GI2: FALSE | GJ2: FALSE | GK2: FALSE | GL2: TRUE | GM2: TRUE | GN2: TRUE | GO2: TRUE | GP2: Primary Care | GQ2: Specialty Care | GR2: Emergency Dept. | GY2: Visits | GZ2: Visits | HA2: Visits | HH2: 1 | HI2: 4 | HJ2: 1890 | HQ2: 0.5 | HR2: 2 | HS2: 945 | HZ2: 125 | IA2: 200 | IB2: 2800 | II2: 1 | IJ2: 2 | IK2: 2 | IL2: 2 | IM2: 2 | IN2: 2 | IO2: 2 | IP2: 2 | IQ2: 2 | IR2: 1 | IS2: 1 | IT2: 1000 | JA2: 40 | JB2: 10 | JC2: 25 | JD2: 60 | JE2: 60 | JF2: 60 | JG2: 60 | JH2: 60 | JI2: 60 | JJ2: FALSE | JK2: FALSE | JL2: FALSE | JM2: FALSE | JN2: TRUE | JO2: Hospital Admissions | JP2: Hospital Readmissions | JQ2: Skilled Nursing Admissions | JT2: 1.33 | JU2: 0.17 | JV2: 0.33 | JY2: 0.665 | JZ2: 0.085 | KA2: 0.165 | KD2: 2 | KE2: 2 | KF2: 2 | KG2: 2 | KI2: 1 | KJ2: 1 | KK2: 1 | KN2: 35 | KO2: 35 | KP2: 45 | KQ2: 60 | KR2: 60 | KS2: 6.5 | KT2: 6 | KU2: 20 | KX2: 4 | KY2: 3.5 | KZ2: 15 | LC2: 50 | LD2: 50 | LE2: 40 | LF2: 60 | LG2: 60 | LH2: 3500 | LI2: 3500 | LJ2: 300 | LM2: 2625 | LN2: 2625 | LO2: 225 | LR2: 45 | LS2: 45 | LT2: 50 | LU2: 60 | LV2: 60 | LW2: Medicare/ACO Shared Savings | LX2: CMS 30-Day Penalty Reduction | MD2: 25000 | ME2: 50000 | MK2: Revisions to HCC | ML2: Stipend for PCC | MM2: Fee for Care Coordination | MR2: 8 | MS2: 6 | MT2: 3 | MY2: 140000 | MZ2: 148.3854 | NA2: 59354.1667 | NB2: 91 | NC2: 36400 | ND2: 9.1 | NE2: 3640 | NF2: 50.625 | NG2: 20250 | NH2: 150.725 | NI2: 60290 | NJ2: 299.1104 | NK2: 119644.1667 | NL2: 1401.6177 | NM2: 280323.5312 | NN2: 361.7777 | NO2: 72355.5456 | NP2: 32.625 | NQ2: 13050 | NR2: 914.3227 | NS2: 365729.0768 | NT2: 615.2123 | NU2: 246084.9102 | NV2: 2.056806588 | NW2: 0.5689093245 | NX2: 0 to 10% | NY2: 10% to 20% | OA2: FALSE
A3: 2 | B3: Restricted | C3: 2016-11-14T13:06:30 | D3: 2000 | E3: 0.05 | F3: 0.1 | H3: Training | I3: Equipment | J3: Other | K3: Recruitment | L3: Remodel/Costruction | W3: 50000 | X3: 25000 | Y3: 25000 | Z3: 25000 | AA3: 15000 | AL3: Program Director | AM3: Medical Director | AN3: Nurse Practitioner | AO3: Social Worker | AP3: Medical Assistant | AQ3: Pharmacist | AR3: Mental Health Liaison | BA3: 1 | BB3: 0.5 | BC3: 2 | BD3: 2 | BE3: 1 | BF3: 0.5 | BG3: 0.1 | BP3: 150000 | BQ3: 200000 | BR3: 95000 | BS3: 42000 | BT3: 45000 | BU3: 120000 | BV3: 175000 | BW3: 1000 | CE3: 0.1 | CF3: Mileage | CG3: Supplies | CH3: Other | CI3: Misc | CP3: 36 | CQ3: 8 | CR3: 36 | CS3: 11 | CZ3: 0.1 | DA3: FALSE | DB3: FALSE | DC3: TRUE | DD3: TRUE | DE3: FALSE | DF3: FALSE | DG3: FALSE | DH3: FALSE | DI3: FALSE | DJ3: FALSE | DK3: FALSE | DL3: FALSE | DM3: FALSE | DN3: FALSE | DO3: Behavioral Health | DP3: Rehabilitation Services | DQ3: Home Delivered Meals | DR3: In-Home Modifications | DS3: Caregiver Education & Support | DT3: Transport to Appointments | EC3: Year | ED3: Month | EE3: Month | EF3: Year | EG3: Month | EH3: Month | EQ3: 125 | ER3: 85 | ES3: 10 | ET3: 1000 | EU3: 25 | EV3: 25 | FE3: 2 | FF3: 1 | FG3: 6 | FH3: 1 | FI3: 1 | FJ3: 1 | FS3: 0.45 | FT3: 0.25 | FU3: 0.1 | FV3: 0.6 | FW3: 0.5 | FX3: 0.3 | GG3: FALSE | GH3: FALSE | GI3: FALSE | GJ3: FALSE | GK3: FALSE | GL3: TRUE | GM3: TRUE | GN3: TRUE | GO3: TRUE | GP3: Primary Care | GQ3: Specialty Care | GR3: Emergency Dept. | GY3: Visits | GZ3: Visits | HA3: Visits | HH3: 1 | HI3: 4 | HJ3: 1890 | HQ3: 0.5 | HR3: 2 | HS3: 945 | HZ3: 125 | IA3: 200 | IB3: 2800 | II3: 1 | IJ3: 2 | IK3: 2 | IL3: 2 | IM3: 2 | IN3: 2 | IO3: 2 | IP3: 2 | IQ3: 2 | IR3: 1 | IS3: 1 | IT3: 1000 | JA3: 40 | JB3: 10 | JC3: 25 | JD3: 60 | JE3: 60 | JF3: 60 | JG3: 60 | JH3: 60 | JI3: 60 | JJ3: FALSE | JK3: FALSE | JL3: FALSE | JM3: FALSE | JN3: TRUE | JO3: Hospital Admissions | JP3: Hospital Readmissions | JQ3: Skilled Nursing Admissions | JT3: 1.33 | JU3: 0.17 | JV3: 0.33 | JY3: 0.665 | JZ3: 0.085 | KA3: 0.165 | KD3: 2 | KE3: 2 | KF3: 2 | KG3: 2 | KI3: 1 | KJ3: 1 | KK3: 1 | KN3: 35 | KO3: 35 | KP3: 45 | KQ3: 60 | KR3: 60 | KS3: 6.5 | KT3: 6 | KU3: 20 | KX3: 4 | KY3: 3.5 | KZ3: 15 | LC3: 50 | LD3: 50 | LE3: 40 | LF3: 60 | LG3: 60 | LH3: 3500 | LI3: 3500 | LJ3: 300 | LM3: 2625 | LN3: 2625 | LO3: 225 | LR3: 45 | LS3: 45 | LT3: 50 | LU3: 60 | LV3: 60 | LW3: Medicare/ACO Shared Savings | LX3: CMS 30-Day Penalty Reduction | MD3: 25000 | ME3: 50000 | MK3: Revisions to HCC | ML3: Stipend for PCC | MM3: Fee for Care Coordination | MR3: 8 | MS3: 6 | MT3: 3 | MY3: 140000 | MZ3: 296.7708 | NA3: 59354.1667 | NB3: 91 | NC3: 18200 | ND3: 9.1 | NE3: 1820 | NF3: 50.625 | NG3: 10125 | NH3: 150.725 | NI3: 30145 | NJ3: 447.4958 | NK3: 89499.1667 | NL3: 1401.6177 | NM3: 140161.7656 | NN3: 361.7777 | NO3: 36177.7728 | NP3: 48.25 | NQ3: 9650 | NR3: 929.9477 | NS3: 185989.5384 | NT3: 482.4519 | NU3: 96490.3717 | NV3: 1.078114751 | NW3: 1.450921967 | NX3: 0 to 5% | NY3: 5% to 10% | OA3: FALSE

Sheet Scen Meta (hidden)
A1: Max Recnum | B1: recnum count
A2: =MAX(Scenarios!A2:A457) -> 2 | B2: =COUNT(Scenarios!A2:A457) -> 2
H3: Navigation Selected | J3: MC Navigation Selected
B6: Comparison Scenarios
A7: Scenerio | B7: # | C7: Name | D7: Date | I7: Required | J7: 9a. Monte Carlo Data
A8: A | B8: 2 | C8: Baseline | D8: 2016-11-14T13:05:59 | G8: 0 | H8: 1. Start | J8: 9b. MC Results-ROI Chart
A9: B | B9: 3 | C9: Restricted | D9: 2016-11-14T13:06:30 | G9: 1 | H9: 2. Flow | J9: 9c. MC Results-Net Benefit PMPM Chart
G10: 2 | H10: 3. Population Data | I10: x | J10: 9d. Sensitivity Analysis
G11: 3 | H11: 4a. Launch Costs | I11: a | J11: 9e. Net Benefit Sensitivity Chart
G12: 4 | H12: 4b.Operating Costs | I12: a | J12: 9f. Cost Sensitivity Chart
A13: Selected Scenario | G13: 5 | H13: 4c. Variable Costs | I13: a | J13: 9g. Visit Sensitivity Chart
A14: row | B14: Name | C14: Date | D14: Edit name or date ONLY | G14: 6 | H14: 5. Additional Utilizations
A15: 3 | B15: Restricted | C15: 2016-11-14T13:06:30 | D15: 0 | G15: 7 | H15: 6a. Medical Utilization Data | I15: b
G16: 8 | H16: 6b. Inpatient Events | I16: bc
G17: 9 | H17: 6c. Inpatients Length of Stay | I17: bc
G18: 10 | H18: 6d. Inpatient Average Costs | I18: bc
A19: Show ROI Flag | B19: 1 | G19: 11 | H19: 6e. Inpatient Utilization Change | I19: b
A20: Show MC Sections | B20: 1 | G20: 12 | H20: 6f. Event Utilization Change | I20: bcd
G21: 13 | H21: 6g. Length of Stay Change | I21: bcd
A22: Baseline: | B22: =INDEX(Scenarios!B$1:B$82,MATCH(1,Scenarios!NZ$1:NZ$82)) ->  | C22: =MATCH(1,Scenarios!NZ$1:NZ$79) ->  | G22: 14 | H22: 6h. Average Cost Per Day Change | I22: bcd
G23: 15 | H23: 6i. Medical Utilization Summary
G24: 16 | H24: 7a. Additional Benefits-(Annual Based)
A25: Resize with NEXT Button | C25: 1 | G25: 17 | H25: 7b. Additional Benefits-(PMPM Based)
G26: 18 | H26: 8a. Summary
A27: Sheet instructions | C27: 1 | G27: 19 | H27: 8b. Scenario Comparisons
A28: Cell Instructions | C28: 0 | G28: 20 | H28: Report
J31: Missing
H32: 3. Population Data | I32: ='3.Population Data'!E7 -> 400 | J32: =OR(ISERROR(I32),I32=0) -> FALSE | K32: =IF(J32=TRUE,"Missing Population Data","") -> 
H33: 4a. Launch Costs | I33: =launchcosts -> 140000
H34: 4b.Operating Costs | I34: ='4.Costs'!E43 -> 712250
H35: 4c. Variable Costs | I35: =+'4.Costs'!D61 -> 100.1
J36: =IF(SUM(I33:I35)=0,TRUE,FALSE) -> FALSE

Sheet Sheet1 (hidden)

Sheet Report
E1: Report Pictures

Sheet SACALCS (hidden)
D1: Test Values | F1: NBPMPM | I1: ROI | N1: 14 | P1: NBPMPM | T1: ROI
C2: Current | D2: Decrease | E2: Increase | F2: Decrease | G2: Increase | I2: Decrease | J2: Increase | N2: Rangename
A3: 1 | B3: ='9a.Monte Carlo Analysis'!B5 -> Hospital Admissions | C3: 1.33 | D3: 1.3167 | E3: 1.3433 | F3: 609.8384 | G3: 620.5861 | I3: 2.038840453 | J3: 2.074772722 | N3: Baseadmin | P3: =1-F3/$C$19 -> 0.008735033419 | Q3: =1-G3/$C$19 -> -0.008734870873 | R3: =AVERAGE(ABS(P3),ABS(Q3))/0.01 -> 0.8734952146 | T3: =1-I3/$C$20 -> 0.008734965617 | U3: =1-J3/$C$20 -> -0.008734965617 | V3: =AVERAGE(ABS(T3),ABS(U3))/0.01 -> 0.8734965617
A4: 2 | C4: 0.665 | D4: 0.65835 | E4: 0.67165 | F4: 613.9722 | G4: 616.4524 | I4: 2.052660556 | J4: 2.060952619 | N4: baseadmin2 | P4: =1-F4/$C$19 -> 0.002015726929 | Q4: =1-G4/$C$19 -> -0.002015726929 | R4: =AVERAGE(ABS(P4),ABS(Q4))/0.01 -> 0.2015726929 | T4: =1-I4/$C$20 -> 0.002015761296 | U4: =1-J4/$C$20 -> -0.002015761296 | V4: =AVERAGE(ABS(T4),ABS(U4))/0.01 -> 0.2015761296
A5: 1 | B5: ='9a.Monte Carlo Analysis'!B8 -> Hospital Readmissions | C5: 0.17 | D5: 0.1683 | E5: 0.1717 | F5: 614.5782 | G5: 615.8463 | I5: 2.054686812 | J5: 2.058926363 | N5: Basereadmin | P5: 0.001030701109 | Q5: -0.001030538564 | R5: 0.1030619836 | T5: 0.001030614798 | U5: -0.001030614798 | V5: 0.1030614798
A6: 2 | C6: 0.085 | D6: 0.08415 | E6: 0.08585 | F6: 615.0736 | G6: 615.351 | I6: 2.056342887 | J6: 2.057270288 | N6: Basereadmin2 | P6: 0.000225450629 | Q6: -0.000225450629 | R6: 0.0225450629 | T6: 0.0002254469871 | U6: -0.0002254469871 | V6: 0.02254469871
A7: 1 | B7: ='9a.Monte Carlo Analysis'!B11 -> Emergency Dept. | C7: 1890 | D7: 1871.1 | E7: 1908.9 | F7: 614.4405 | G7: 615.984 | I7: 2.054226437 | J7: 2.059386738 | N7: baseed | P7: 0.001254526283 | Q7: -0.001254363738 | R7: 0.125444501 | T7: 0.00125444506 | U7: -0.00125444506 | V7: 0.125444506
A8: 2 | C8: 945 | D8: 935.55 | E8: 954.45 | F8: 614.8264 | G8: 615.5982 | I8: 2.055516512 | J8: 2.058096663 | N8: baseed2 | P8: 0.0006272631415 | Q8: -0.0006272631415 | R8: 0.06272631415 | T8: 0.0006272225302 | U8: -0.0006272225302 | V8: 0.06272225302
A9: 1 | B9: ='9a.Monte Carlo Analysis'!B14 -> Baseline Cost of Hospital Admissions | C9: 3500 | D9: 3465 | E9: 3535 | F9: 609.8384 | G9: 620.5861 | I9: 2.038840453 | J9: 2.074772722 | N9: basehospdayAD1 | P9: 0.008735033419 | Q9: -0.008734870873 | R9: 0.8734952146 | T9: 0.008734965617 | U9: -0.008734965617 | V9: 0.8734965617
A10: 2 | C10: 2625 | D10: 2598.75 | E10: 2651.25 | F10: 613.9722 | G10: 616.4524 | I10: 2.052660556 | J10: 2.060952619 | N10: basehospdayAD2 | P10: 0.002015726929 | Q10: -0.002015726929 | R10: 0.2015726929 | T10: 0.002015761296 | U10: -0.002015761296 | V10: 0.2015761296
A11: 1 | B11: Baseline Cost of Hospital Day-Admission | C11: 3500 | D11: 3465 | E11: 3535 | F11: 614.5782 | G11: 615.8463 | I11: 2.054686812 | J11: 2.058926363 | N11: basehospdayRE1 | P11: 0.001030701109 | Q11: -0.001030538564 | R11: 0.1030619836 | T11: 0.001030614798 | U11: -0.001030614798 | V11: 0.1030614798
A12: 2 | C12: 2625 | D12: 2598.75 | E12: 2651.25 | F12: 615.0736 | G12: 615.351 | I12: 2.056342887 | J12: 2.057270288 | N12: basehospdayRE2 | P12: 0.000225450629 | Q12: -0.000225450629 | R12: 0.0225450629 | T12: 0.0002254469871 | U12: -0.0002254469871 | V12: 0.02254469871
B13: ='9a.Monte Carlo Analysis'!B20 -> Costs per Emergency Dept. | C13: 2800 | D13: 2772 | E13: 2828 | F13: 614.0547 | G13: 616.3699 | I13: 2.052936361 | J13: 2.060676814 | N13: edcosts | P13: 0.001881626879 | Q13: -0.001881626879 | R13: 0.1881626879 | T13: 0.001881667591 | U13: -0.001881667591 | V13: 0.1881667591
B14: Total Operating Costs | C14: 119644.1667 | D14: 118447.725 | E14: 120840.6084 | F14: 618.2034 | G14: 612.2212 | I14: 2.087683422 | J14: 2.026541174 | N14: topcost | P14: =1-F14/$C$19 -> -0.004861898892 | Q14: =1-G14/$C$19 -> 0.004861898892 | R14: =AVERAGE(ABS(P14),ABS(Q14))/0.01 -> 0.4861898892 | T14: =1-I14/$C$20 -> -0.01501202612 | U14: =1-J14/$C$20 -> 0.01471475909 | V14: =AVERAGE(ABS(T14),ABS(U14))/0.01 -> 1.48633926
B15: ='9a.Monte Carlo Analysis'!B22 -> Percentage Change in Specialty Care | C15: 10 | D15: 9.9 | E15: 10.1 | F15: 615.2623 | G15: 615.1623 | I15: 2.056973749 | J15: 2.056639424 | N15: pcspecvisit1 | P15: -8.127275739e-05 | Q15: 8.127275739e-05 | R15: 0.008127275739 | T15: -8.127234656e-05 | U15: 8.127317467e-05 | V15: 0.008127276062
B16: ='9a.Monte Carlo Analysis'!B24 -> Percentage Change in Emergency Dept. | C16: 25 | D16: 24.75 | E16: 25.25 | F16: 616.0392 | G16: 614.3854 | I16: 2.059571034 | J16: 2.054042139 | N16: pcedvisit1 | P16: -0.001344088862 | Q16: 0.001344088862 | R16: 0.1344088862 | T16: -0.001344047865 | U16: 0.001344048693 | V16: 0.1344048279
B17: ='9a.Monte Carlo Analysis'!B26 -> Percentage Change in Hospital Admissions | C17: 35 | D17: 34.65 | E17: 35.35 | F17: 619.3669 | G17: 611.0577 | I17: 2.070696399 | J17: 2.042916775 | N17: pcadmin1 | P17: -0.006753115957 | Q17: 0.006753115957 | R17: 0.6753115957 | T17: -0.006753095493 | U17: 0.006753096321 | V17: 0.6753095907
B18: ='9a.Monte Carlo Analysis'!B28 -> Percentage Change in Hospital Readmissions | C18: 35 | D18: 34.65 | E18: 35.35 | F18: 615.6977 | G18: 614.7269 | I18: 2.058429404 | J18: 2.05518377 | N18: pcreadmin1 | P18: -0.0007889959287 | Q18: 0.0007889959287 | R18: 0.07889959287 | T18: -0.000788997927 | U18: 0.0007889987552 | V18: 0.07889983411
B19: Net Bennefit PMPM | C19: 615.2123
B20: ROI | C20: 2.056806588
